{"text_format":"1","workbook":"xlsx","n_sheets":31,"sheets":["Disclaimer","MENU","Help","Microstrip Calc","Microstrip Graph","Emb. Microstrip Calc","Emb. Microstrip Graph","Stripline Calc ","Stripline Graph","Asymetric Stripline Calc","Asymetric Stripline Graph","Dual Stripline Calc","Dual Stripline Graph","6 layer pcb","8 layer pcb","10 layer pcb","12 layer pcb","14 layer pcb","Trace-calc ","Via-calc","Thermals","RESISTOR","PARTIAL","Barsingle","BAR","SERPENTINE","SERPENTINE1","SERPENTINE2","Custom","convert","Matched Length"],"not_rendered":{"charts":20,"images":146,"macros":1,"external_links":0,"defined_names":2,"comments":5,"pivot_tables":0},"unopened":[],"bounds":{"document_bytes":16777216,"sheet_cells":100000,"rows_first":2000,"rows_last":500,"rows_between":2000,"halvings":0,"cell_chars":16384,"cell_head_chars":4096},"cells_cut":0,"cells_raw":0,"read":"whole","date_system":"1900"}

{"sheet":"Disclaimer","index":0,"n_rows":26,"n_cols":2,"rows_kept":26,"cut":false,"hidden":false,"merged":[[11,1,11,12],[22,1,22,12],[26,5,28,8],[13,1,13,12],[15,1,15,12],[25,1,25,12],[14,1,14,12],[23,1,23,12],[24,1,24,12],[2,1,2,12],[3,1,3,12],[4,1,4,12],[6,1,6,12],[5,1,5,12],[12,1,12,12],[7,1,7,12],[9,1,9,12],[8,1,8,12],[10,1,10,12]]}
[]
[]
[null,"DISCLAIMER"]
[]
[null,"This toolset is provided as is without any guarantees or warranty."]
[null,"Although we have attempted to find and correct any bugs in the"]
[null,"package, we are not responsible for any damage or losses of any kind"]
[null,"caused by the use or misuse of the package. We are under no"]
[null,"obligation to provide service, corrections, or upgrades to this package.\n\n"]
[]
[null,"If you Agree to these conditions"]
[null,"Click continue And then Save The Document on the main menu page"]
[null,"This will Bypass this Disclaimer in future use"]
[]
[null,"BROUGHT TO YOU"]
[null,"BY"]
[]
[]
[]
[]
[]
[]
[]
[]
[null,"Designed By "]
[null,"Phillip Restall"]

{"sheet":"MENU","index":1,"n_rows":38,"n_cols":23,"rows_kept":38,"cut":false,"hidden":false,"merged":[[18,22,18,27],[16,22,16,27],[17,22,17,27],[14,22,14,27],[11,22,11,27],[12,22,12,27],[13,22,13,27],[15,22,15,27],[20,22,21,27],[17,4,17,6],[23,1,23,6],[17,8,17,10],[12,9,12,12],[13,9,13,12],[14,9,14,12],[16,1,16,6],[17,11,17,13],[16,8,16,13],[37,1,37,6],[31,1,31,3],[29,15,29,20],[30,15,30,17],[30,18,30,20],[18,18,20,20],[25,8,25,10],[24,1,24,3],[24,4,24,6],[2,15,2,20],[4,15,6,16],[4,19,6,20],[4,17,6,18],[31,4,31,6],[30,1,30,6],[17,18,17,20],[17,1,17,3],[10,9,10,12],[10,1,10,3],[10,4,10,6],[11,9,11,12],[9,1,9,6],[9,9,9,12],[2,1,2,6],[3,1,3,3],[3,4,3,6],[2,8,2,13],[6,22,6,27],[4,22,5,27],[2,22,3,27],[7,22,7,27],[8,22,8,27],[9,22,9,27],[9,15,9,20],[28,22,29,27],[26,22,26,27],[27,22,27,27],[10,22,10,27],[36,22,36,27],[16,15,16,20],[17,15,17,17],[24,22,25,27],[19,22,19,27],[37,22,37,27],[38,22,38,27],[31,22,31,27],[32,22,32,27],[33,22,33,27],[34,22,34,27],[35,22,35,27]]}
[3]
[]
[null,"Microstrip Calculator",null,null,null,null,null,null,"Impedance Stackup Calculators",null,null,null,null,null,null,"UNIT CONVERTER",null,null,null,null,null,null,"PCB-TOOL-SET"]
[null,"Single Calculation",null,null,"Graph"]
[null,null,null,null,null,null,null,null,null,null,null,null,null,null,null,"INCH",null,"=",null,"mm",null,null,"V2.4"]
[]
[]
[null,null,null,null,null,null,null,null,null,null,null,null,null,null,null,null,null,null,null,null,null,null,"BROUGHT TO YOU"]
[null,null,null,null,null,null,null,null,null,null,null,null,null,null,null,null,null,null,null,null,null,null,"BY"]
[null,"Embedded Calculator",null,null,null,null,null,null,null,"6 LAYER STACKUP",null,null,null,null,null,"MATCHED LENGTHS (basic)"]
[null,"Single Calculation",null,null,"Graph",null,null,null,null,"8 LAYER STACKUP"]
[null,null,null,null,null,null,null,null,null,"10 LAYER STACKUP"]
[null,null,null,null,null,null,null,null,null,"12 LAYER STACKUP"]
[null,null,null,null,null,null,null,null,null,"14 LAYER STACKUP"]
[]
[null,null,null,null,null,null,null,null,null,null,null,null,null,null,null,null,null,null,null,null,null,null,"Designed by "]
[null,"Stripline Calculator",null,null,null,null,null,null,"Current Calculators",null,null,null,null,null,null,"Buried Calculators",null,null,null,null,null,null,"PHILLIP RESTALL"]
[null,"Single Calculation",null,null,"Graph",null,null,null,"Trace",null,null,"Via",null,null,null,"Resistor",null,null,"Capacitance"]
[null,null,null,null,null,null,null,null,null,null,null,null,null,null,null,null,null,null,"To Follow"]
[]
[]
[]
[]
[null,"Asymmetric Stripline Calculator"]
[null,"Single Calculation",null,null,"Graph",null,null,null,null,null,null,null,null,null,null,null,null,null,null,null,null,null,"V2.4 Updates"]
[null,null,null,null,null,null,null,null,"Thermal"]
[]
[null,null,null,null,null,null,null,null,null,null,null,null,null,null,null,null,null,null,null,null,null,null,"CORRECTED CELL PROTECTION"]
[null,null,null,null,null,null,null,null,null,null,null,null,null,null,null,null,null,null,null,null,null,null,"DISCLAIMER"]
[]
[null,"Dual Stripline Calculator"]
[null,"Single Calculation",null,null,"Graph"]
[null,null,null,null,null,null,null,null,null,null,null,null,null,null,null,null,null,null,null,null,null,null,"If you have any Questions"]
[null,null,null,null,null,null,null,null,null,null,null,null,null,null,null,null,null,null,null,null,null,null,"Or suggestions for new Tools"]
[null,null,null,null,null,null,null,null,null,null,null,null,null,null,null,null,null,null,null,null,null,null,"That are not yet in this Package "]
[null,null,null,null,null,null,null,null,null,null,null,null,null,null,null,null,null,null,null,null,null,null,"Click Below to email me"]
[]
[null,"HELP"]

{"sheet":"Help","index":2,"n_rows":40,"n_cols":2,"rows_kept":40,"cut":false,"hidden":false,"merged":[[4,0,4,1],[5,0,5,1]]}
[1]
[]
[]
[]
["Controlled Impedance Calculator V2.0"]
["HELP"]
[]
[null,"Select the Units on each sheet you require to use."]
[]
[null,"Input The figures into the Purple boxes"]
[null,"Note that (S) only applies for Differential Impedance"]
[]
[null,"Results are available in 2 forms "]
[null,"1. Written"]
[null,"2. Graph"]
[]
[null,"To Find a value"]
[null,"Click on the graphs bar you wish to alter."]
[null,"Drag it up or down to the desired value."]
[null,"Click on the figure you wish to change"]
[null,"for example the height and click ok"]
[]
[]
[]
[]
[null,"To use the graph , Input the figure you want values for"]
[null,"(There are 10 different variations you can input)"]
[]
[]
[null,"The results will be outputted as a graph "]
[null,"So you can see the effects of your changes"]
[]
[null,"You can find a value in the same way as the graph bar"]
[]
[null,"The reference lines on the graph are the Pci and Cpci"]
[null,"Impedance requirements and their min and max "]
[null,"Tolerances"]
[]
["Use this calculator as a reference only!"]
["I cannot confirm the equations this calculator uses are 100% accurate.."]

{"sheet":"Microstrip Calc","index":3,"n_rows":37,"n_cols":32,"rows_kept":37,"cut":false,"hidden":false,"merged":[[28,16,28,19],[28,20,28,24],[14,8,14,10],[4,12,6,13],[7,24,7,25],[27,16,27,19],[18,13,18,17],[15,9,15,11],[4,18,4,20],[8,25,10,26],[27,20,27,24],[8,24,10,24],[2,8,2,17],[15,17,15,19],[4,3,4,4],[3,2,3,7],[3,17,3,19],[7,13,7,14]]}
[2]
[]
[null,null,null,null,null,null,null,null,"Microstrip Calculator"]
[null,null,"Select Units",null,null,null,null,null,null,null,null,null,null,null,null,null,null,"W"]
[null,null,null,"mm",null,null,null,null,null,null,null,null,"S",null,null,null,null,5,{"$f":"D5","v":"mm"}]
[]
[]
[null,null,null,null,null,null,null,null,null,null,null,null,10,{"$f":"D5","v":"mm"},null,null,null,null,null,null,null,null,null,null,"T"]
[null,null,null,null,null,null,null,null,null,null,null,null,null,null,null,null,null,null,null,null,null,null,null,null,0.5,{"$f":"D5","v":"mm"}]
[]
[]
[]
[]
[null,null,null,null,null,null,null,null,null,null,null,null,null,null,null,null,null,null,null,null,null,null,null,null,null,null,null,null,null,"Thou"]
[null,null,null,null,null,null,null,null,"H",null,null,null,null,null,null,null,null,null,null,null,null,null,null,null,null,null,null,null,null,"Microns"]
[null,null,null,null,null,null,null,null,8.8189890217735645,{"$f":"D5","v":"mm"},null,null,null,null,null,null,null,null,null,null,null,null,null,null,null,null,null,null,null,"mm"]
[]
[]
[null,null,null,null,null,null,null,null,null,null,null,null,null,"Dielectric Constant =",null,null,null,null,null,4.2,"Er"]
[]
[]
[]
[]
[]
[]
[]
[]
[null,null,null,null,null,null,null,null,null,null,null,null,null,null,null,null,"Zo  [OHM] =",null,null,null,{"$f":"60/SQRT(0.475*T19+0.67)*LN((4*I16)/(0.67*(0.8*R5+Y9)))","v":90.399793992286419}]
[null,null,null,null,null,null,null,null,null,null,null,null,null,null,null,null,"Zdf  [OHM] =",null,null,null,{"$f":"(1-0.48*EXP(-0.96*(M8/I16)))*2*U28","v":151.57939983313545}]
[]
[]
[]
[]
[]
[]
[null,null,null,null,null,null,null,null,null,null,null,null,null,null,null,null,null,null,null,null,null,null,null,null,null,null,null,null,null,null,null,"Designed"]
[null,null,null,null,null,null,null,null,null,null,null,null,null,null,null,null,null,null,null,null,null,null,null,null,null,null,null,null,null,null,null,"By"]

{"sheet":"Microstrip Graph","index":4,"n_rows":19,"n_cols":19,"rows_kept":19,"cut":false,"hidden":false,"merged":[[4,4,6,10]]}
[1]
[null,null,null,null,null,null,null,null,null,null,null,null,null,60,80,100,58.5,65,71.5]
[null,null,null,null,null,null,null,null,null,null,null,null,null,60,80,100,58.5,65,71.5]
[null,null,null,null,null,null,null,null,null,null,null,null,null,60,80,100,58.5,65,71.5]
[null,null,null,null,"MICROSTRIP GRAPH",null,null,null,null,null,null,null,null,60,80,100,58.5,65,71.5]
[null,null,null,null,null,null,null,null,null,null,null,null,null,60,80,100,58.5,65,71.5]
[null,null,null,null,null,null,null,null,null,null,null,null,null,60,80,100,58.5,65,71.5]
[null,null,null,null,null,null,null,null,null,null,null,null,null,60,80,100,58.5,65,71.5]
[null,null,"Height","Width","Thickness","ER",null,"Zo",null,"Space","Zdf",null,null,60,80,100,58.5,65,71.5]
[null,1,15,6,0.5,4.2,null,{"$f":"60/SQRT(0.475*F10+0.67)*LN((4*C10)/(0.67*(0.8*D10+E10)))","v":103.90732535312368},null,15,{"$f":"(1-0.48*EXP(-0.96*(J10/C10)))*2*H10","v":169.62069005497142},null,null,60,80,100,58.5,65,71.5]
[null,2,14,6,0.5,4.2,null,101.37157284112226,null,14,165.48126976450988,null,null,60,80,100,58.5,65,71.5]
[null,3,13,6,0.5,4.2,null,98.647820770827948,null,13,161.0349547031619]
[null,4,12,6,0.5,4.2,null,95.705944419313084,null,12,156.2325685854891]
[null,5,11,6,0.5,4.2,null,92.507942755968983,null,11,151.01207766158268]
[null,6,10,6,0.5,4.2,null,89.004928275642072,null,10,145.29367685195444]
[null,7,9,6,0.5,4.2,null,85.132525424636967,null,9,138.97227803309264]
[null,8,8,6,0.5,4.2,null,80.803547341831475,null,8,131.90555538247213]
[null,9,7,6,0.5,4.2,null,75.895756768964503,null,7,123.8939660090964]
[null,10,6,6,0.5,4.2,null,70.230128347155343,null,6,114.64526483007565]

{"sheet":"Emb. Microstrip Calc","index":5,"n_rows":38,"n_cols":35,"rows_kept":38,"cut":false,"hidden":false,"merged":[[2,1,2,27],[14,26,16,26],[9,4,9,5],[20,15,20,19],[9,19,9,21],[3,4,3,10],[14,27,16,28],[19,11,19,13],[10,5,10,6],[4,5,4,9],[30,18,30,21],[30,22,30,26],[18,10,18,12],[10,14,12,15],[13,26,13,27],[29,18,29,21],[29,22,29,26],[19,19,19,21],[13,15,13,16],[10,20,10,22]]}
[1]
[]
[null,"Embedded Microstrip Calculator"]
[null,null,null,null,"Select Units"]
[null,null,null,null,null,"Thou"]
[]
[]
[]
[null,null,null,null,null,null,null,null,null,null,null,null,null,null,null,null,null,null,null,null,null,null,null,null,null,null,"Eref",{"$f":" V21*(1-(EXP((-1.55*E11)/K20)))","v":3.8482784525127771},null,null,null,"Thou"]
[null,null,null,null,"H2",null,null,null,null,null,null,null,null,null,null,null,null,null,null,"W",null,null,null,null,null,null,null,null,null,null,null,"Microns"]
[null,null,null,null,8,{"$f":"F5","v":"Thou"},null,null,null,null,null,null,null,null,"S",null,null,null,null,10,{"$f":"F5","v":"Thou"},null,null,null,null,null,null,null,null,null,null,"mm"]
[]
[]
[null,null,null,null,null,null,null,null,null,null,null,null,null,null,15,{"$f":"F5","v":"Thou"},null,null,null,null,null,null,null,null,null,null,"T"]
[null,null,null,null,null,null,null,null,null,null,null,null,null,null,null,null,null,null,null,null,null,null,null,null,null,null,0.77,{"$f":"F5","v":"Thou"}]
[]
[]
[]
[null,null,null,null,null,null,null,null,null,null,"H"]
[null,null,null,null,null,null,null,null,null,null,5,{"$f":"F5","v":"Thou"}]
[null,null,null,null,null,null,null,null,null,null,null,null,null,null,null,"Dielectric Constant =",null,null,null,null,null,4.2,"Er"]
[]
[]
[]
[]
[]
[]
[]
[]
[null,null,null,null,null,null,null,null,null,null,null,null,null,null,null,null,null,null,"Zo  [OHM] =",null,null,null,{"$f":"(60/SQRT(AB9))*LN((5.98*K20)/(0.8*T11+AA15))","v":37.513987808887727}]
[null,null,null,null,null,null,null,null,null,null,null,null,null,null,null,null,null,null,"Zdf  [OHM] =",null,null,null,{"$f":"(1-0.48*EXP(-0.96*(O14/E11)))*2*W30","v":69.074995959310854}]
[]
[]
[]
[]
[]
[null,null,null,null,null,null,null,null,null,null,null,null,null,null,null,null,null,null,null,null,null,null,null,null,null,null,null,null,null,null,null,null,null,null,"Designed"]
[null,null,null,null,null,null,null,null,null,null,null,null,null,null,null,null,null,null,null,null,null,null,null,null,null,null,null,null,null,null,null,null,null,null,"By"]

{"sheet":"Emb. Microstrip Graph","index":6,"n_rows":18,"n_cols":20,"rows_kept":18,"cut":false,"hidden":false,"merged":[[5,3,5,11]]}
[2]
[null,null,null,null,null,null,null,null,null,null,null,null,null,null,60,80,100,58.5,65,71.5]
[null,null,null,null,null,null,null,null,null,null,null,null,null,null,60,80,100,58.5,65,71.5]
[null,null,null,null,null,null,null,null,null,null,null,null,null,null,60,80,100,58.5,65,71.5]
[null,null,null,null,null,null,null,null,null,null,null,null,null,null,60,80,100,58.5,65,71.5]
[null,null,null,"Embedded Microstrip GRAPH",null,null,null,null,null,null,null,null,null,null,60,80,100,58.5,65,71.5]
[null,null,null,null,null,null,null,null,null,null,null,null,null,null,60,80,100,58.5,65,71.5]
[null,null,"Height","Height2","Width","Thickness","ER",null,"Zo",null,"Space","Zdf",null,null,60,80,100,58.5,65,71.5]
[null,1,4,12,6,0.5,4.2,null,{"$f":"(60/SQRT(N9))*LN((5.98*C9)/(0.8*E9+F9))","v":44.386272202915229},null,15,{"$f":"(1-0.48*EXP(-0.96*(K9/D9)))*2*I9","v":75.938411660988024},null,{"$f":"G9*(1-(EXP((-1.55*D9)/G9)))","v":4.1498876053498241},60,80,100,58.5,65,71.5]
[null,2,4,12,6,0.5,4.2,null,44.386272202915229,null,14,74.869494378518937,null,4.1498876053498241,60,80,100,58.5,65,71.5]
[null,3,4,12,6,0.5,4.2,null,44.386272202915229,null,13,73.711550110005902,null,4.1498876053498241,60,80,100,58.5,65,71.5]
[null,4,4,12,6,0.5,4.2,null,44.386272202915229,null,12,72.457164058837407,null,4.1498876053498241]
[null,5,4,12,6,0.5,4.2,null,44.386272202915229,null,11,71.098303871734686,null,4.1498876053498241]
[null,6,4,12,6,0.5,4.2,null,44.386272202915229,null,10,69.626268204267973,null,4.1498876053498241]
[null,7,4,12,6,0.5,4.2,null,44.386272202915229,null,9,68.031631002544984,null,4.1498876053498241]
[null,8,4,12,6,0.5,4.2,null,44.386272202915229,null,8,66.304181144285096,null,4.1498876053498241]
[null,9,4,12,6,0.5,4.2,null,44.386272202915229,null,7,64.432857052775205,null,4.1498876053498241]
[null,10,4,12,6,0.5,4.2,null,44.386272202915229,null,6,62.405675865013968,null,4.1498876053498241]

{"sheet":"Stripline Calc ","index":7,"n_rows":39,"n_cols":35,"rows_kept":39,"cut":false,"hidden":false,"merged":[[11,20,11,22],[15,27,17,28],[14,15,14,16],[31,18,31,21],[31,22,31,26],[14,26,14,27],[30,18,30,21],[30,22,30,26],[20,19,20,21],[15,26,17,26],[10,4,10,5],[2,10,2,20],[21,15,21,19],[10,19,10,21],[4,5,4,7],[3,4,3,10],[11,5,11,6],[20,11,20,13],[19,10,19,12],[11,14,13,15]]}
[2]
[]
[null,null,null,null,null,null,null,null,null,null,"Stripline Calculator"]
[null,null,null,null,"Select Units"]
[null,null,null,null,null,"Thou"]
[]
[]
[]
[]
[]
[null,null,null,null,"H2",null,null,null,null,null,null,null,null,null,null,null,null,null,null,"W"]
[null,null,null,null,{"$f":"(2*K21+AA16)","v":9},{"$f":"F5","v":"Thou"},null,null,null,null,null,null,null,null,"S",null,null,null,null,6,{"$f":"F5","v":"Thou"}]
[]
[]
[null,null,null,null,null,null,null,null,null,null,null,null,null,null,15,{"$f":"F5","v":"Thou"},null,null,null,null,null,null,null,null,null,null,"T"]
[null,null,null,null,null,null,null,null,null,null,null,null,null,null,null,null,null,null,null,null,null,null,null,null,null,null,1,{"$f":"F5","v":"Thou"}]
[]
[]
[]
[null,null,null,null,null,null,null,null,null,null,"H",null,null,null,null,null,null,null,null,null,null,null,null,null,null,null,null,null,null,null,null,"Thou"]
[null,null,null,null,null,null,null,null,null,null,4,{"$f":"F5","v":"Thou"},null,null,null,null,null,null,null,null,null,null,null,null,null,null,null,null,null,null,null,"Microns"]
[null,null,null,null,null,null,null,null,null,null,null,null,null,null,null,"Dielectric Constant =",null,null,null,null,null,4.2,"Er",null,null,null,null,null,null,null,null,"mm"]
[]
[]
[]
[]
[]
[]
[]
[]
[null,null,null,null,null,null,null,null,null,null,null,null,null,null,null,null,null,null,"Zo  [OHM] =",null,null,null,{"$f":"60/SQRT(V22)*LN((4*E12)/(0.67*PI()*(0.8*T12+AA16)))","v":31.660404924865187}]
[null,null,null,null,null,null,null,null,null,null,null,null,null,null,null,null,null,null,"Zdf  [OHM] =",null,null,null,{"$f":"(1-0.347*EXP(-2.9*(O15/E12)))*2*W31","v":63.14591140820248}]
[]
[]
[]
[]
[]
[null,null,null,null,null,null,null,null,null,null,null,null,null,null,null,null,null,null,null,null,null,null,null,null,null,null,null,null,null,null,null,null,null,null,"Designed"]
[null,null,null,null,null,null,null,null,null,null,null,null,null,null,null,null,null,null,null,null,null,null,null,null,null,null,null,null,null,null,null,null,null,null,"By"]

{"sheet":"Stripline Graph","index":8,"n_rows":18,"n_cols":20,"rows_kept":18,"cut":false,"hidden":false,"merged":[[4,5,5,11]]}
[1]
[null,null,null,null,null,null,null,null,null,null,null,null,null,null,60,80,100,58.5,65,71.5]
[null,null,null,null,null,null,null,null,null,null,null,null,null,null,60,80,100,58.5,65,71.5]
[null,null,null,null,null,null,null,null,null,null,null,null,null,null,60,80,100,58.5,65,71.5]
[null,null,null,null,null,"STRIPLINE GRAPH",null,null,null,null,null,null,null,null,60,80,100,58.5,65,71.5]
[null,null,null,null,null,null,null,null,null,null,null,null,null,null,60,80,100,58.5,65,71.5]
[null,null,null,null,null,null,null,null,null,null,null,null,null,null,60,80,100,58.5,65,71.5]
[null,null,"Height","Height2","Width","Thickness","ER",null,"Zo",null,"Space","Zdf",null,null,60,80,100,58.5,65,71.5]
[null,1,12,{"$f":"2*C9+F9","v":24.5},6,0.5,4.2,null,{"$f":"60/SQRT(G9)*LN((4*D9)/(0.67*PI()*(0.8*E9+F9)))","v":63.619169892343798},null,15,{"$f":"(1-0.347*EXP(-2.9*(K9/D9)))*2*I9","v":119.75917358027483},null,null,60,80,100,58.5,65,71.5]
[null,2,8,16.5,6,0.5,4.2,null,52.045598036488599,null,14,101.00718563399974,null,null,60,80,100,58.5,65,71.5]
[null,3,8,16.5,6,0.5,4.2,null,52.045598036488599,null,13,100.41459605728275,null,null,60,80,100,58.5,65,71.5]
[null,4,8,16.5,6,0.5,4.2,null,52.045598036488599,null,12,99.708140975444422]
[null,5,8,16.5,6,0.5,4.2,null,52.045598036488599,null,11,98.865941243515053]
[null,6,8,16.5,6,0.5,4.2,null,52.045598036488599,null,10,97.861913660308801]
[null,7,8,16.5,6,0.5,4.2,null,52.045598036488599,null,9,96.664963163151043]
[null,8,8,16.5,6,0.5,4.2,null,52.045598036488599,null,8,95.238019803615984]
[null,9,8,16.5,6,0.5,4.2,null,52.045598036488599,null,7,93.536890679098121]
[null,10,8,16.5,6,0.5,4.2,null,52.045598036488599,null,6,91.508891264162827]

{"sheet":"Asymetric Stripline Calc","index":9,"n_rows":39,"n_cols":35,"rows_kept":39,"cut":false,"hidden":false,"merged":[[22,15,22,19],[16,27,18,28],[11,20,11,22],[14,15,14,16],[10,10,10,12],[21,19,21,21],[2,5,2,29],[10,19,10,21],[3,3,3,10],[4,5,4,6],[10,4,10,5],[16,26,18,26],[11,11,11,13],[21,11,21,13],[32,18,32,21],[32,22,32,26],[20,10,20,12],[11,14,13,15],[14,26,14,27],[31,18,31,21],[31,22,31,26]]}
[3]
[]
[null,null,null,null,null,"Asymetric Stripline Calc"]
[null,null,null,"Select Units"]
[null,null,null,null,null,"Thou"]
[]
[]
[]
[]
[]
[null,null,null,null,null,null,null,null,null,null,"H2",null,null,null,null,null,null,null,null,"W"]
[null,null,null,null,null,null,null,null,null,null,10.7,{"$f":"F5","v":"Thou"},null,null,"S",null,null,null,null,5,{"$f":"F5","v":"Thou"}]
[]
[]
[null,null,null,null,null,null,null,null,null,null,null,null,null,null,15,{"$f":"F5","v":"Thou"},null,null,null,null,null,null,null,null,null,null,"T"]
[]
[null,null,null,null,null,null,null,null,null,null,null,null,null,null,null,null,null,null,null,null,null,null,null,null,null,null,0.7,{"$f":"F5","v":"Thou"}]
[]
[]
[]
[null,null,null,null,null,null,null,null,null,null,"H",null,null,null,null,null,null,null,null,null,null,null,null,null,null,null,null,null,null,null,null,null,"Thou"]
[null,null,null,null,null,null,null,null,null,null,8.5,{"$f":"F5","v":"Thou"},null,null,null,null,null,null,null,null,null,null,null,null,null,null,null,null,null,null,null,null,"Microns"]
[null,null,null,null,null,null,null,null,null,null,null,null,null,null,null,"Dielectric Constant =",null,null,null,null,null,4.2,"Er",null,null,null,null,null,null,null,null,null,"mm"]
[]
[]
[]
[]
[]
[]
[]
[]
[null,null,null,null,null,null,null,null,null,null,null,null,null,null,null,null,null,null,"Zo  [OHM] =",null,null,null,{"$f":"(80/SQRT(V23))*LN((1.9*(2*K12+AA17))/(0.8*T12+AA17))*(1-(K12/(4*K22)))","v":58.581498780895039}]
[null,null,null,null,null,null,null,null,null,null,null,null,null,null,null,null,null,null,"Zdf  [OHM] =",null,null,null,{"$f":"(1-0.347*EXP(-2.9*(O15/(K12+K22+AA17))))*2*W32","v":112.59440145736943}]
[]
[]
[]
[]
[null,null,null,null,null,null,null,null,null,null,null,null,null,null,null,null,null,null,null,null,null,null,null,null,null,null,null,null,null,null,null,null,null,null,"Designed"]
[null,null,null,null,null,null,null,null,null,null,null,null,null,null,null,null,null,null,null,null,null,null,null,null,null,null,null,null,null,null,null,null,null,null,"By"]

{"sheet":"Asymetric Stripline Graph","index":10,"n_rows":18,"n_cols":20,"rows_kept":18,"cut":false,"hidden":false,"merged":[]}
[1]
[null,null,null,null,null,null,null,null,null,null,null,null,null,null,60,80,100,58.5,65,71.5]
[null,null,null,null,null,null,null,null,null,null,null,null,null,null,60,80,100,58.5,65,71.5]
[null,null,null,null,null,null,null,null,null,null,null,null,null,null,60,80,100,58.5,65,71.5]
[null,null,null,null,null,null,null,null,null,null,null,null,null,null,60,80,100,58.5,65,71.5]
[null,null,null,null,null,"Asymetric Stripline Graph",null,null,null,null,null,null,null,null,60,80,100,58.5,65,71.5]
[null,null,null,null,null,null,null,null,null,null,null,null,null,null,60,80,100,58.5,65,71.5]
[null,null,"Height","Height2","Width","Thickness","ER",null,"Zo",null,"Space","Zdf",null,null,60,80,100,58.5,65,71.5]
[null,1,8,6,6,0.5,4.2,null,{"$f":" (80/SQRT(G9))*LN((1.9*(2*D9+F9))/(0.8*E9+F9))*(1-(D9/(4*C9)))","v":47.571186478633116},null,6,{"$f":"(1-0.347*EXP(-2.9*(K9/(D9+C9+F9))))*2*I9","v":85.198625738580972},null,null,60,80,100,58.5,65,71.5]
[null,2,8,6,6,0.5,4.2,null,47.571186478633116,null,6,85.198625738580972,null,null,60,80,100,58.5,65,71.5]
[null,3,8,6,6,0.5,4.2,null,47.571186478633116,null,6,85.198625738580972,null,null,60,80,100,58.5,65,71.5]
[null,4,8,6,6,0.5,4.2,null,47.571186478633116,null,6,85.198625738580972]
[null,5,8,6,6,0.5,4.2,null,47.571186478633116,null,6,85.198625738580972]
[null,6,8,6,6,0.5,4.2,null,47.571186478633116,null,6,85.198625738580972]
[null,7,8,6,6,0.5,4.2,null,47.571186478633116,null,6,85.198625738580972]
[null,8,8,6,6,0.5,4.2,null,47.571186478633116,null,6,85.198625738580972]
[null,9,8,6,6,0.5,4.2,null,47.571186478633116,null,6,85.198625738580972]
[null,10,8,6,6,0.5,4.2,null,47.571186478633116,null,6,85.198625738580972]

{"sheet":"Dual Stripline Calc","index":11,"n_rows":45,"n_cols":38,"rows_kept":45,"cut":false,"hidden":false,"merged":[[29,11,29,12],[3,1,3,6],[4,2,4,5],[24,17,26,18],[11,10,11,11],[11,17,11,18],[28,10,28,13],[10,6,10,10],[24,16,26,16],[22,16,23,17],[11,12,11,13],[10,16,10,17],[38,24,38,27],[38,28,38,32],[29,20,29,22],[30,16,30,20],[24,27,26,27],[24,28,26,28],[37,24,37,27],[11,21,11,22],[2,2,2,27],[20,10,20,13],[14,27,14,28],[21,11,21,12],[21,20,21,22],[10,4,10,5],[10,20,10,22],[16,28,18,28],[16,27,18,27],[11,6,11,9]]}
[3]
[]
[null,null,"Dual Stripline Calc"]
[null,"Select Units"]
[null,null,"Thou"]
[]
[]
[]
[]
[]
[null,null,null,null,null,null,"W",null,null,null,null,null,null,null,null,null,"H2"]
[null,null,null,null,null,null,6,null,null,null,{"$f":"C5","v":"Thou"},null,null,null,null,null,{"$f":"K30","v":6},{"$f":"C5","v":"Thou"}]
[]
[]
[]
[]
[]
[]
[]
[]
[null,null,null,null,null,null,null,null,null,null,"C",null,null,null,null,null,null,null,null,null,null,null,null,null,null,null,null,null,null,null,null,null,null,null,null,null,"Thou"]
[null,null,null,null,null,null,null,null,null,null,8,{"$f":"C5","v":"Thou"},null,null,null,null,null,null,null,null,null,null,null,null,null,null,null,null,null,null,null,null,null,null,null,null,"Microns"]
[null,null,null,null,null,null,null,null,null,null,null,null,null,null,null,null,"T",null,null,null,null,null,null,null,null,null,null,null,null,null,null,null,null,null,null,null,"mm"]
[]
[null,null,null,null,null,null,null,null,null,null,null,null,null,null,null,null,1,{"$f":"C5","v":"Thou"}]
[]
[]
[]
[null,null,null,null,null,null,null,null,null,null,"H"]
[null,null,null,null,null,null,null,null,null,null,6,{"$f":"C5","v":"Thou"}]
[null,null,null,null,null,null,null,null,null,null,null,null,null,null,null,null,"Dielectric Constant =",null,null,null,null,null,4.2,"Er"]
[]
[]
[]
[]
[]
[]
[null,null,null,null,null,null,null,null,null,null,null,null,null,null,null,null,null,null,null,null,null,null,null,null,"Zo  [OHM] =",null,null,null,null,{"$f":"(80/SQRT(W31))*LN((1.9*(2*K30+Q25))/(0.8*G12+Q25))*(1-(K30/(4*(K30+K22+Q25))))","v":50.90493057917142}]
[]
[]
[]
[]
[]
[null,null,null,null,null,null,null,null,null,null,null,null,null,null,null,null,null,null,null,null,null,null,null,null,null,null,null,null,null,null,null,null,null,null,null,null,null,"Designed"]
[null,null,null,null,null,null,null,null,null,null,null,null,null,null,null,null,null,null,null,null,null,null,null,null,null,null,null,null,null,null,null,null,null,null,null,null,null,"By"]

{"sheet":"Dual Stripline Graph","index":12,"n_rows":18,"n_cols":26,"rows_kept":18,"cut":false,"hidden":false,"merged":[[4,3,5,9]]}
[1]
[null,null,null,null,null,null,null,null,null,null,null,null,null,null,null,null,null,null,null,null,60,80,100,58.5,65,71.5]
[null,null,null,null,null,null,null,null,null,null,null,null,null,null,null,null,null,null,null,null,60,80,100,58.5,65,71.5]
[null,null,null,null,null,null,null,null,null,null,null,null,null,null,null,null,null,null,null,null,60,80,100,58.5,65,71.5]
[null,null,null,"Asymetric Stripline Graph",null,null,null,null,null,null,null,null,null,null,null,null,null,null,null,null,60,80,100,58.5,65,71.5]
[null,null,null,null,null,null,null,null,null,null,null,null,null,null,null,null,null,null,null,null,60,80,100,58.5,65,71.5]
[null,null,null,null,null,null,null,null,null,null,null,null,null,null,null,null,null,null,null,null,60,80,100,58.5,65,71.5]
[null,null,"Height","HeightC","Width","Thickness","ER",null,"Zo",null,null,null,null,null,null,null,null,null,null,null,60,80,100,58.5,65,71.5]
[null,1,8,6,6,0.5,4.2,null,{"$f":"(80/SQRT(G9))*LN((1.9*(2*C9+F9))/(0.8*E9+F9))*(1-(C9/(4*(C9+D9+F9))))","v":59.816194714698675},null,null,null,null,null,null,null,null,null,null,null,60,80,100,58.5,65,71.5]
[null,2,8,6,6,0.5,4.2,null,59.816194714698675,null,null,null,null,null,null,null,null,null,null,null,60,80,100,58.5,65,71.5]
[null,3,8,6,6,0.5,4.2,null,59.816194714698675,null,null,null,null,null,null,null,null,null,null,null,60,80,100,58.5,65,71.5]
[null,4,8,6,6,0.5,4.2,null,59.816194714698675]
[null,5,8,6,6,0.5,4.2,null,59.816194714698675]
[null,6,8,6,6,0.5,4.2,null,59.816194714698675]
[null,7,8,6,6,0.5,4.2,null,59.816194714698675]
[null,8,8,6,6,0.5,4.2,null,59.816194714698675]
[null,9,8,6,6,0.5,4.2,null,59.816194714698675]
[null,10,8,6,6,0.5,4.2,null,59.816194714698675]

{"sheet":"6 layer pcb","index":13,"n_rows":42,"n_cols":24,"rows_kept":42,"cut":false,"hidden":false,"merged":[[9,18,9,20]]}
[1]
[null,null,null,null,null,null,null,null,null,null,null,null,null,null,"PLANE","Layer 1"]
[null,null,null,null,null,null,null,null,null,null,null,null,null,null,"TRACK","Layer 2"]
[null,null,null,null,null,null,null,null,null,null,null,null,null,null,null,"Layer 3"]
[null,null,null,null,null,null,null,null,null,null,null,null,null,null,null,"Layer 4"]
[null,null,null,null,null,null,null,null,null,null,null,null,null,null,null,"Layer 5"]
[null,null,null,null,null,"PCB No.",null,null,null,null,null,null,null,null,null,"Layer 6"]
[null,null,null,null,null,"PCB Name",null,null,null,null,null,null,null,null,null,"Layer 7"]
[null,"6 LAYER PCB STACKUP",null,null,null,null,null,null,null,null,null,null,null,null,null,"Layer 8"]
[null,null,null,null,"Thickness","Ref. Upper","Ref. Lower","H1a","h2","H1","H","ha","Impedance  Zo",null,null,"Layer 9",null,null,"Trace Width"]
[null,null,null,null,null,null,null,null,null,null,null,null,null,null,null,"Layer 10"]
[null,null,null,null,null,null,null,null,null,null,null,null,null,null,null,"Layer 11"]
[null,"Layer 1","TRACK",null,1,null,"Layer 2",null,null,null,{"$f":"IF(G13=\"layer 2\",E14,IF(G13=\"layer 3\",E14+E15+E16,))","v":5},null,{"$f":"IF(C13=\"plane\",O2,60/SQRT(0.475*C42+0.67)*LN((4*K13)/(0.67*(0.8*S13+E13))))","v":65.670717951476661},null,null,"Layer 12",null,null,5]
[null,null,null,null,5,null,null,null,null,null,null,null,null,null,null,"Layer 13"]
[null,"Layer 2","PLANE",null,1,null,null,{"$f":"IF(K15>J15,J15,K15)","v":0},{"$f":"K15+E15+E14+E13","v":7},{"$f":"E14","v":5},{"$f":"IF(G15=\"layer 3\",E16,IF(G15=\"layer 6\",E16+E17+E18+E19+E20+E21+E22+E23+E24+E25+E26+E27+E28+E29+E30+E31+E32+E33+E34+E35+E36+E37+E38,))","v":0},{"$f":"IF(K15<J15,J15,K15)","v":5},{"$f":"IF(C15=\"plane\",O2,IF(F15=\"\",(60/SQRT(N15))*LN((5.98*K15)/(0.8*S15+E15)),IF(F15=\"layer 1\",(80/SQRT(C42))*LN((1.9*(2*E14+E15))/(0.8*S15+E15))*(1-(H15/(4*L15))),)))","v":"PLANE"},{"$f":"C42*(1-(EXP((-1.55*I15)/K15)))","v":{"$error":"#DIV/0!"}},null,"Layer 14",null,null,5]
[null,null,null,null,5,null,null,null,null,null,null,null,null,null,null,null,null,null,null,null,null,null," PCB SIZE REQUIRED"]
[null,"Layer 3","TRACK",null,1,"Layer 2","Layer 5",{"$f":"IF(K17>J17,J17,K17)","v":5},{"$f":"K17+E17+E16+E15+E14+E13","v":24},{"$f":"IF(F17=\"layer 2\",E16,IF(F17=\"layer 1\",E14+E15+E16,))","v":5},{"$f":"IF(G17=\"layer 5\",E18+E19+E20+E21+E22+E23+E24+E25+E26+E27+E28+E29+E30+E31+E32+E33+E34+E35+E36,IF(G17=\"layer 6\",E18+E19+E20+E21+E22+E23+E24+E25+E26+E27+E28+E29+E30+E31+E32+E33+E34+E35+E36+E37+E38,))","v":11},{"$f":"IF(K17<J17,J17,K17)","v":11},{"$f":"IF(C17=\"plane\",O2,IF(F17=\"\",(60/SQRT(N17))*LN((5.98*K17)/(0.8*S17+E17)),IF(F17=\"Layer 1\",(80/SQRT(C42))*LN((1.9*(2*H17+E17))/(0.8*S17+E17))*(1-(H17/(4*L17))),IF(F17=\"Layer 2\",(80/SQRT(C42))*LN((1.9*(2*H17+E17))/(0.8*S17+E17))*(1-(H17/(4*L17))),))))","v":49.488902857759371},{"$f":"C42*(1-(EXP((-1.55*I17)/K17)))","v":4.0572604526406186},null,null,null,null,5,null,null,null,"PCB",1.6]
[null,null,null,null,0]
[null,"Layer 0","TRACK",null,0,null,null,{"$f":"IF(K19>J19,J19,K19)","v":0},{"$f":"K19+E19+E18+E17+E16+E15+E14+E13","v":13},{"$f":"IF(F19=\"layer 3\",E18,IF(F19=\"layer 2\",E18+E17+E16,IF(F19=\"layer 1\",E18+E17+E16+E14,)))","v":0},{"$f":"IF(G19=\"layer 5\",E20,IF(G19=\"layer 6\",E20+E21+E22,IF(G19=\"layer 7\",E20+E21+E22+E23+E24,IF(G19=\"layer 12\",E20+E21+E22+E23+E24+E25+E26+E27+E28+E29+E30+E31+E32+E33+E34,IF(G19=\"layer 13\",E20+E21+E22+E23+E24+E25+E26+E27+E28+E29+E30+E31+E32+E33+E34+E35+E36,IF(G19=\"layer 14\",E20+E21+E22+E23+E24+E25+E26+E27+E28+E29+E30+E31+E32+E33+E34+E35+E36+E37+E38,))))))","v":0},{"$f":"IF(K19<J19,J19,K19)","v":0},{"$f":"IF(C19=\"plane\",O2,IF(F19=\"\",(60/SQRT(N19))*LN((5.98*K19)/(0.8*S19+E19)),IF(F19=\"Layer 1\",(80/SQRT(C42))*LN((1.9*(2*H19+E19))/(0.8*S19+E19))*(1-(H19/(4*L19))),IF(F19=\"Layer 2\",(80/SQRT(C42))*LN((1.9*(2*H19+E19))/(0.8*S19+E19))*(1-(H19/(4*L19))),IF(F19=\"Layer 3\",(80/SQRT(C42))*LN((1.9*(2*H19+E19))/(0.8*S19+E19))*(1-(H19/(4*L19))),)))))","v":{"$error":"#DIV/0!"}},{"$f":"C42*(1-(EXP((-1.55*I19)/K19)))","v":{"$error":"#DIV/0!"}},null,null,null,null,5]
[null,null,null,null,0]
[null,"Layer 5","PLANE",null,0,null,null,{"$f":"IF(K21>J21,J21,K21)","v":0},{"$f":"K21+E21+E20+E19+E18+E17+E16+E15+E14+E13","v":13},{"$f":"IF(F21=\"layer 4\",E20,IF(F21=\"layer 3\",E20+E19+E18,IF(F21=\"layer 2\",E20+E19+E18+E17+E16,IF(F21=\"layer 1\",E20+E19+E18+E17+E16+E15+E14,))))","v":0},{"$f":"IF(G21=\"layer 6\",E22,IF(G21=\"layer 7\",E22+E23+E24,IF(G21=\"layer 11\",E22+E23+E24+E25+E26+E27+E30+E31+E32,IF(G21=\"layer 12\",E22+E23+E24+E25+E26+E27+E28+E29+E30+E31+E32+E33+E34,IF(G21=\"layer 13\",E22+E23+E24+E25+E26+E27+E28+E29+E30+E31+E32+E33+E34+E35+E36,IF(G21=\"layer 14\",E22+E23+E24+E25+E26+E27+E28+E29+E30+E31+E32+E33+E34+E35+E36+E37+E38,))))))","v":0},{"$f":"IF(K21<J21,J21,K21)","v":0},{"$f":"IF(C21=\"plane\",O2,IF(F21=\"\",(60/SQRT(N21))*LN((5.98*K21)/(0.8*S21+E21)),IF(F21=\"Layer 1\",(80/SQRT(C42))*LN((1.9*(2*H21+E21))/(0.8*S21+E21))*(1-(H21/(4*L21))),IF(F21=\"Layer 2\",(80/SQRT(C42))*LN((1.9*(2*H21+E21))/(0.8*S21+E21))*(1-(H21/(4*L21))),IF(F21=\"Layer 3\",(80/SQRT(C42))*LN((1.9*(2*H21+E21))/(0.8*S21+E21))*(1-(H21/(4*L21))),IF(F21=\"Layer 4\",(80/SQRT(C42))*LN((1.9*(2*H21+E21))/(0.8*S21+E21))*(1-(H21/(4*L21))),))))))","v":"PLANE"},{"$f":"C42*(1-(EXP((-1.55*I21)/K21)))","v":{"$error":"#DIV/0!"}},null,null,null,null,5]
[null,null,null,null,0]
[null,"Layer 6","TRACK",null,0,null,null,{"$f":"IF(K23>J23,J23,K23)","v":0},{"$f":"K23+E23+E22+E21+E20+E19+E18+E17+E16+E15+E14+E13","v":13},{"$f":"IF(F23=\"layer 5\",E22,IF(F23=\"layer 4\",E22+E21+E20,IF(F23=\"layer 3\",E22+E21+E20+E19+E18,IF(F23=\"layer 2\",E22+E21+E20+E19+E18+E17+E16,IF(F23=\"layer 1\",E22+E21+E20+E19+E18+E17+E16+E15+E14,)))))","v":0},{"$f":"IF(G23=\"layer 7\",E24,IF(G23=\"layer 10\",E24+E25+E26+E27+E28+E29+E30,IF(G23=\"layer11\",E24+E25+E26+E27+E28+E29+E32,IF(G23=\"layer 12\",E24+E25+E26+E27+E28+E29+E32+E33+E34,IF(G23=\"layer 13\",E24+E25+E26+E27+E28+E29+E32+E33+E34+E35+E36,IF(G23=\"layer 14\",E24+E25+E26+E27+E28+E29+E30+E31+E32+E33+E34+E35+E36+E37+E38,))))))","v":0},{"$f":"IF(K23<J23,J23,K23)","v":0},{"$f":"IF(C23=\"plane\",O2,IF(F23=\"\",(60/SQRT(N23))*LN((5.98*K23)/(0.8*S23+E23)),IF(F23=\"Layer 1\",(80/SQRT(C42))*LN((1.9*(2*H23+E23))/(0.8*S23+E23))*(1-(H23/(4*L23))),IF(F23=\"Layer 2\",(80/SQRT(C42))*LN((1.9*(2*H23+E23))/(0.8*S23+E23))*(1-(H23/(4*L23))),IF(F23=\"Layer 3\",(80/SQRT(C42))*LN((1.9*(2*H23+E23))/(0.8*S23+E23))*(1-(H23/(4*L23))),IF(F23=\"Layer 4\",(80/SQRT(C42))*LN((1.9*(2*H23+E23))/(0.8*S23+E23))*(1-(H23/(4*L23))),IF(F23=\"Layer 5\",(80/SQRT(C42))*LN((1.9*(2*J23+E23))/(0.8*S23+E23))*(1-(H23/(4*L23))),)))))))","v":{"$error":"#DIV/0!"}},{"$f":"C42*(1-(EXP((-1.55*I23)/K23)))","v":{"$error":"#DIV/0!"}},null,null,null,null,5]
[null,null,null,null,0]
[null,"Layer 7","TRACK",null,0,null,null,{"$f":"IF(K25>J25,J25,K25)","v":0},null,{"$f":"IF(F25=\"layer 6\",E24,IF(F23=\"layer 5\",E24+E23+E22,IF(F25=\"layer 4\",E24+E23+E22,IF(F25=\"layer 3\",E24+E23+E22+E21+E20,IF(F25=\"layer 2\",E24+E23+E22+E21+E20+E19+E18,IF(F25=\"layer 1\",E24+E23+E22+E21+E20+E19+E18+E17+E16,))))))","v":0},{"$f":"IF(G25=\"layer 9\",E26+E27+E28,IF(G25=\"layer 10\",E26+E27+E28+E29+E30,IF(G25=\"layer 11\",E26+E27+E28+E29+E30+E31+E32,IF(G25=\"layer 12\",E26+E27+E28+E29+E30+E31+E32+E33+E34,IF(G25=\"layer 13\",E26+E27+E28+E29+E30+E31+E32+E33+E34+E35+E36,IF(G25=\"layer 14\",E26+E27+E28+E29+E30+E31+E32+E33+E34+E35+E36+E37+E38,))))))","v":0},{"$f":"IF(K25<J25,J25,K25)","v":0},{"$f":"IF(C25=\"plane\",O2,(80/SQRT(C42))*LN((1.9*(2*H25+E25))/(0.8*S25+E25))*(1-(H25/(4*L25))))","v":{"$error":"#NUM!"}},null,null,null,null,null,5]
[null,null,"Middle",null,5,null,null,null,null,null,null,null,null,null,null,null,null,null,null,null,null,null,"TOLERENCE",5]
[null,"Layer 8",{"$f":"C25","v":"TRACK"},null,{"$f":"E25","v":0},null,null,null,null,null,null,null,{"$f":"M25","v":{"$error":"#NUM!"}},null,null,null,null,null,5]
[null,null,null,null,{"$f":"E24","v":0}]
[null,"Layer 9",{"$f":"C23","v":"TRACK"},null,{"$f":"E23","v":0},null,null,null,null,null,null,null,{"$f":"M23","v":{"$error":"#DIV/0!"}},null,null,null,null,null,{"$f":"S23","v":5}]
[null,null,null,null,{"$f":"E20","v":0}]
[null,"Layer 10",{"$f":"C21","v":"PLANE"},null,{"$f":"E21","v":0},null,null,null,null,null,null,null,{"$f":"M21","v":"PLANE"},null,null,null,null,null,{"$f":"S21","v":5}]
[null,null,null,null,{"$f":"E20","v":0},null,null,null,null,null,null,null,null,null,null,null,null,null,null,null,null,null," PCB SIZE REQUIRED"]
[null,"Layer 11",{"$f":"C19","v":"TRACK"},null,{"$f":"E19","v":0},null,null,null,null,null,null,null,{"$f":"M19","v":{"$error":"#DIV/0!"}},null,null,null,null,null,{"$f":"S19","v":5},null,null,null,"PCB",1.6]
[null,null,null,null,{"$f":"E18","v":0},null,null,null,null,null,null,null,null,null,null,null,null,null,null,null,null,null,"TOLERENCE",5]
[null,"Layer 4",{"$f":"C17","v":"TRACK"},null,{"$f":"E17","v":1},null,null,null,null,null,null,null,{"$f":"M17","v":49.488902857759371},null,null,null,null,null,{"$f":"S17","v":5},null,null,null,"    TOTAL"]
[null,null,null,null,{"$f":"E16","v":5},null,null,null,null,null,null,null,null,null,null,null,null,null,null,null,null,null,"MAX.",{"$f":"X17/100*X26+X17","v":1.6800000000000002}]
[null,"Layer 5",{"$f":"C15","v":"PLANE"},null,{"$f":"E15","v":1},null,null,null,null,null,null,null,{"$f":"M15","v":"PLANE"},null,null,null,null,null,{"$f":"S15","v":5},null,null,null,"MIN.",{"$f":"X17-(X17/100*X26)","v":1.52}]
[null,null,null,null,{"$f":"E14","v":5}]
[null,"Layer 6",{"$f":"C13","v":"TRACK"},null,{"$f":"E13","v":1},null,null,null,null,null,null,null,{"$f":"M13","v":65.670717951476661},null,null,null,null,null,{"$f":"S13","v":5}]
[]
[null,null,null,null,null,null,null,null,null,null,null,null,null,null,null,null,null,null,null,null,null,null,"    TOTAL"]
[null,"ER=",4.2,null,null,null,null,null,null,null,null,null,null,null,null,null,null,null,null,null,null,null,{"$f":"E13+E14+E16+E15+E17+E18+E19+E20+E21+E22+E23+E24+E25+E26+E27+E28+E29+E30+E31+E32+E33+E34+E35+E36+E37+E38+E39","v":31}]

{"sheet":"8 layer pcb","index":14,"n_rows":42,"n_cols":24,"rows_kept":42,"cut":false,"hidden":false,"merged":[[9,18,9,20]]}
[1]
[null,null,null,null,null,null,null,null,null,null,null,null,null,null,"PLANE","Layer 1"]
[null,null,null,null,null,null,null,null,null,null,null,null,null,null,"TRACK","Layer 2"]
[null,null,null,null,null,null,null,null,null,null,null,null,null,null,null,"Layer 3"]
[null,null,null,null,null,null,null,null,null,null,null,null,null,null,null,"Layer 4"]
[null,null,null,null,null,null,null,null,null,null,null,null,null,null,null,"Layer 5"]
[null,null,null,null,null,"PCB No.",null,null,null,null,null,null,null,null,null,"Layer 6"]
[null,null,null,null,null,"PCB Name",null,null,null,null,null,null,null,null,null,"Layer 7"]
[null,"8 LAYER PCB STACKUP",null,null,null,null,null,null,null,null,null,null,null,null,null,"Layer 8"]
[null,null,null,null,"Thickness","Ref. Upper","Ref. Lower","H1a","h2","H1","H","ha","Impedance  Zo",null,null,"Layer 9",null,null,"Trace Width"]
[null,null,null,null,null,null,null,null,null,null,null,null,null,null,null,"Layer 10"]
[null,null,null,null,null,null,null,null,null,null,null,null,null,null,null,"Layer 11"]
[null,"Layer 1","TRACK",null,0.5,null,"Layer 2",null,null,null,{"$f":"IF(G13=\"layer 2\",E14,IF(G13=\"layer 3\",E14+E15+E16,IF(G13=\"layer 4\",E14+E15+E16+E17+E18,)))","v":8},null,{"$f":"IF(C13=\"plane\",O2,60/SQRT(0.475*C42+0.67)*LN((4*K13)/(0.67*(0.8*S13+E13))))","v":86.81755594082891},null,null,"Layer 12",null,null,5]
[null,null,null,null,8,null,null,null,null,null,null,null,null,null,null,"Layer 13"]
[null,"Layer 2","PLANE",null,0.5,null,null,{"$f":"IF(K15>J15,J15,K15)","v":0},{"$f":"K15+E15+E14+E13","v":9},{"$f":"E14","v":8},{"$f":"IF(G15=\"layer 3\",E16,IF(G15=\"layer 4\",E16+E17+E18,IF(G15=\"layer 8\",E16+E17+E18+E19+E20+E21+E22+E23+E24+E25+E26+E27+E28+E29+E30+E31+E32+E33+E34+E35+E36+E37+E38,)))","v":0},{"$f":"IF(K15<J15,J15,K15)","v":8},{"$f":"IF(C15=\"plane\",O2,IF(F15=\"\",(60/SQRT(N15))*LN((5.98*K15)/(0.8*S15+E15)),IF(F15=\"layer 1\",(80/SQRT(C42))*LN((1.9*(2*E14+E15))/(0.8*S15+E15))*(1-(H15/(4*L15))),)))","v":"PLANE"},{"$f":"C42*(1-(EXP((-1.55*I15)/K15)))","v":{"$error":"#DIV/0!"}},null,"Layer 14",null,null,5]
[null,null,null,null,6]
[null,"Layer 3","PLANE",null,1,null,null,{"$f":"IF(K17>J17,J17,K17)","v":0},{"$f":"K17+E17+E16+E15+E14+E13","v":16},{"$f":"IF(F17=\"layer 2\",E16,IF(F17=\"layer 1\",E14+E15+E16,))","v":0},{"$f":"IF(G17=\"layer 4\",E18,IF(G17=\"layer 7\",E18+E19+E20+E21+E22+E23+E24+E25+E26+E27+E28+E29+E30+E31+E32+E33+E34+E35+E36,IF(G17=\"layer 8\",E18+E19+E20+E21+E22+E23+E24+E25+E26+E27+E28+E29+E30+E31+E32+E33+E34+E35+E36+E37+E38,)))","v":0},{"$f":"IF(K17<J17,J17,K17)","v":0},{"$f":"IF(C17=\"plane\",O2,IF(F17=\"\",(60/SQRT(N17))*LN((5.98*K17)/(0.8*S17+E17)),IF(F17=\"Layer 1\",(80/SQRT(C42))*LN((1.9*(2*H17+E17))/(0.8*S17+E17))*(1-(H17/(4*L17))),IF(F17=\"Layer 2\",(80/SQRT(C42))*LN((1.9*(2*H17+E17))/(0.8*S17+E17))*(1-(H17/(4*L17))),))))","v":"PLANE"},{"$f":"C42*(1-(EXP((-1.55*I17)/K17)))","v":{"$error":"#DIV/0!"}},null,null,null,null,5]
[null,null,null,null,9]
[null,"Layer 4","TRACK",null,1,"Layer 3","Layer 6",{"$f":"IF(K19>J19,J19,K19)","v":9},{"$f":"K19+E19+E18+E17+E16+E15+E14+E13","v":44},{"$f":"IF(F19=\"layer 3\",E18,IF(F19=\"layer 2\",E18+E17+E16,IF(F19=\"layer 1\",E18+E17+E16+E14,)))","v":9},{"$f":"IF(G19=\"layer 6\",E20+E21+E22+E23+E24+E25+E26+E27+E28+E29+E30+E31+E32+E33+E34,IF(G19=\"layer 7\",E20+E21+E22+E23+E24+E25+E26+E27+E28+E29+E30+E31+E32+E33+E34+E35+E36,IF(G19=\"layer 8\",E20+E21+E22+E23+E24+E25+E26+E27+E28+E29+E30+E31+E32+E33+E34+E35+E36+E37+E38,)))","v":18},{"$f":"IF(K19<J19,J19,K19)","v":18},{"$f":"IF(C19=\"plane\",O2,IF(F19=\"\",(60/SQRT(N19))*LN((5.98*K19)/(0.8*S19+E19)),IF(F19=\"Layer 1\",(80/SQRT(C42))*LN((1.9*(2*H19+E19))/(0.8*S19+E19))*(1-(H19/(4*L19))),IF(F19=\"Layer 2\",(80/SQRT(C42))*LN((1.9*(2*H19+E19))/(0.8*S19+E19))*(1-(H19/(4*L19))),IF(F19=\"Layer 3\",(80/SQRT(C42))*LN((1.9*(2*H19+E19))/(0.8*S19+E19))*(1-(H19/(4*L19))),)))))","v":67.522451246194009},{"$f":"C42*(1-(EXP((-1.55*I19)/K19)))","v":4.104992967480424},null,null,null,null,5]
[null,null,null,null,0]
[null,"Layer 5","TRACK",null,0,null,null,{"$f":"IF(K21>J21,J21,K21)","v":0},{"$f":"K21+E21+E20+E19+E18+E17+E16+E15+E14+E13","v":26},{"$f":"IF(F21=\"layer 4\",E20,IF(F21=\"layer 3\",E20+E19+E18,IF(F21=\"layer 2\",E20+E19+E18+E17+E16,IF(F21=\"layer 1\",E20+E19+E18+E17+E16+E15+E14,))))","v":0},{"$f":"IF(G21=\"layer 6\",E22,IF(G21=\"layer 7\",E22+E23+E24,IF(G21=\"layer 11\",E22+E23+E24+E25+E26+E27+E30+E31+E32,IF(G21=\"layer 12\",E22+E23+E24+E25+E26+E27+E28+E29+E30+E31+E32+E33+E34,IF(G21=\"layer 13\",E22+E23+E24+E25+E26+E27+E28+E29+E30+E31+E32+E33+E34+E35+E36,IF(G21=\"layer 14\",E22+E23+E24+E25+E26+E27+E28+E29+E30+E31+E32+E33+E34+E35+E36+E37+E38,))))))","v":0},{"$f":"IF(K21<J21,J21,K21)","v":0},{"$f":"IF(C21=\"plane\",O2,IF(F21=\"\",(60/SQRT(N21))*LN((5.98*K21)/(0.8*S21+E21)),IF(F21=\"Layer 1\",(80/SQRT(C42))*LN((1.9*(2*H21+E21))/(0.8*S21+E21))*(1-(H21/(4*L21))),IF(F21=\"Layer 2\",(80/SQRT(C42))*LN((1.9*(2*H21+E21))/(0.8*S21+E21))*(1-(H21/(4*L21))),IF(F21=\"Layer 3\",(80/SQRT(C42))*LN((1.9*(2*H21+E21))/(0.8*S21+E21))*(1-(H21/(4*L21))),IF(F21=\"Layer 4\",(80/SQRT(C42))*LN((1.9*(2*H21+E21))/(0.8*S21+E21))*(1-(H21/(4*L21))),))))))","v":{"$error":"#DIV/0!"}},{"$f":"C42*(1-(EXP((-1.55*I21)/K21)))","v":{"$error":"#DIV/0!"}},null,null,null,null,5]
[null,null,null,null,0]
[null,"Layer 0","TRACK",null,0,null,null,{"$f":"IF(K23>J23,J23,K23)","v":0},{"$f":"K23+E23+E22+E21+E20+E19+E18+E17+E16+E15+E14+E13","v":26},{"$f":"IF(F23=\"layer 5\",E22,IF(F23=\"layer 4\",E22+E21+E20,IF(F23=\"layer 3\",E22+E21+E20+E19+E18,IF(F23=\"layer 2\",E22+E21+E20+E19+E18+E17+E16,IF(F23=\"layer 1\",E22+E21+E20+E19+E18+E17+E16+E15+E14,)))))","v":0},{"$f":"IF(G23=\"layer 7\",E24,IF(G23=\"layer 10\",E24+E25+E26+E27+E28+E29+E30,IF(G23=\"layer11\",E24+E25+E26+E27+E28+E29+E32,IF(G23=\"layer 12\",E24+E25+E26+E27+E28+E29+E32+E33+E34,IF(G23=\"layer 13\",E24+E25+E26+E27+E28+E29+E32+E33+E34+E35+E36,IF(G23=\"layer 14\",E24+E25+E26+E27+E28+E29+E30+E31+E32+E33+E34+E35+E36+E37+E38,))))))","v":0},{"$f":"IF(K23<J23,J23,K23)","v":0},{"$f":"IF(C23=\"plane\",O2,IF(F23=\"\",(60/SQRT(N23))*LN((5.98*K23)/(0.8*S23+E23)),IF(F23=\"Layer 1\",(80/SQRT(C42))*LN((1.9*(2*H23+E23))/(0.8*S23+E23))*(1-(H23/(4*L23))),IF(F23=\"Layer 2\",(80/SQRT(C42))*LN((1.9*(2*H23+E23))/(0.8*S23+E23))*(1-(H23/(4*L23))),IF(F23=\"Layer 3\",(80/SQRT(C42))*LN((1.9*(2*H23+E23))/(0.8*S23+E23))*(1-(H23/(4*L23))),IF(F23=\"Layer 4\",(80/SQRT(C42))*LN((1.9*(2*H23+E23))/(0.8*S23+E23))*(1-(H23/(4*L23))),IF(F23=\"Layer 5\",(80/SQRT(C42))*LN((1.9*(2*J23+E23))/(0.8*S23+E23))*(1-(H23/(4*L23))),)))))))","v":{"$error":"#DIV/0!"}},{"$f":"C42*(1-(EXP((-1.55*I23)/K23)))","v":{"$error":"#DIV/0!"}},null,null,null,null,5]
[null,null,null,null,0]
[null,"Layer 0","TRACK",null,0,null,null,{"$f":"IF(K25>J25,J25,K25)","v":0},null,{"$f":"IF(F25=\"layer 6\",E24,IF(F23=\"layer 5\",E24+E23+E22,IF(F25=\"layer 4\",E24+E23+E22,IF(F25=\"layer 3\",E24+E23+E22+E21+E20,IF(F25=\"layer 2\",E24+E23+E22+E21+E20+E19+E18,IF(F25=\"layer 1\",E24+E23+E22+E21+E20+E19+E18+E17+E16,))))))","v":0},{"$f":"IF(G25=\"layer 9\",E26+E27+E28,IF(G25=\"layer 10\",E26+E27+E28+E29+E30,IF(G25=\"layer 11\",E26+E27+E28+E29+E30+E31+E32,IF(G25=\"layer 12\",E26+E27+E28+E29+E30+E31+E32+E33+E34,IF(G25=\"layer 13\",E26+E27+E28+E29+E30+E31+E32+E33+E34+E35+E36,IF(G25=\"layer 14\",E26+E27+E28+E29+E30+E31+E32+E33+E34+E35+E36+E37+E38,))))))","v":0},{"$f":"IF(K25<J25,J25,K25)","v":0},{"$f":"IF(C25=\"plane\",O2,(80/SQRT(C42))*LN((1.9*(2*H25+E25))/(0.8*S25+E25))*(1-(H25/(4*L25))))","v":{"$error":"#NUM!"}},null,null,null,null,null,5]
[null,null,"Middle",null,8,null,null,null,null,null,null,null,null,null,null,null,null,null,null,null,null,null," PCB SIZE REQUIRED"]
[null,"Layer 0",{"$f":"C25","v":"TRACK"},null,0,null,null,null,null,null,null,null,{"$f":"M25","v":{"$error":"#NUM!"}},null,null,null,null,null,5]
[null,null,null,null,0]
[null,"Layer 0",{"$f":"C23","v":"TRACK"},null,0,null,null,null,null,null,null,null,{"$f":"M23","v":{"$error":"#DIV/0!"}},null,null,null,null,null,{"$f":"S23","v":5}]
[null,null,null,null,0]
[null,"Layer 0",{"$f":"C21","v":"TRACK"},null,0,null,null,null,null,null,null,null,{"$f":"M21","v":{"$error":"#DIV/0!"}},null,null,null,null,null,{"$f":"S21","v":5}]
[null,null,null,null,0,null,null,null,null,null,null,null,null,null,null,null,null,null,null,null,null,null," PCB SIZE REQUIRED"]
[null,"Layer 5",{"$f":"C19","v":"TRACK"},null,{"$f":"E19","v":1},null,null,null,null,null,null,null,{"$f":"M19","v":67.522451246194009},null,null,null,null,null,{"$f":"S19","v":5},null,null,null,"PCB",1.6]
[null,null,null,null,{"$f":"E18","v":9},null,null,null,null,null,null,null,null,null,null,null,null,null,null,null,null,null,"TOLERENCE",5]
[null,"Layer 6",{"$f":"C17","v":"PLANE"},null,{"$f":"E17","v":1},null,null,null,null,null,null,null,{"$f":"M17","v":"PLANE"},null,null,null,null,null,{"$f":"S17","v":5},null,null,null,"    TOTAL"]
[null,null,null,null,{"$f":"E16","v":6},null,null,null,null,null,null,null,null,null,null,null,null,null,null,null,null,null,"MAX.",{"$f":"X33/100*X34+X33","v":1.6800000000000002}]
[null,"Layer 7",{"$f":"C15","v":"PLANE"},null,{"$f":"E15","v":0.5},null,null,null,null,null,null,null,{"$f":"M15","v":"PLANE"},null,null,null,null,null,{"$f":"S15","v":5},null,null,null,"MIN.",{"$f":"X33-(X33/100*X34)","v":1.52}]
[null,null,null,null,{"$f":"E14","v":8}]
[null,"Layer 8",{"$f":"C13","v":"TRACK"},null,{"$f":"E13","v":0.5},null,null,null,null,null,null,null,{"$f":"M13","v":86.81755594082891},null,null,null,null,null,{"$f":"S13","v":5}]
[]
[null,null,null,null,null,null,null,null,null,null,null,null,null,null,null,null,null,null,null,null,null,null,"    TOTAL"]
[null,"ER=",4.2,null,null,null,null,null,null,null,null,null,null,null,null,null,null,null,null,null,null,null,{"$f":"E13+E14+E16+E15+E17+E18+E19+E20+E21+E22+E23+E24+E25+E26+E27+E28+E29+E30+E31+E32+E33+E34+E35+E36+E37+E38+E39","v":60}]

{"sheet":"10 layer pcb","index":15,"n_rows":42,"n_cols":24,"rows_kept":42,"cut":false,"hidden":false,"merged":[[9,18,9,20]]}
[1]
[null,null,null,null,null,null,null,null,null,null,null,null,null,null,"PLANE","Layer 1"]
[null,null,null,null,null,null,null,null,null,null,null,null,null,null,"TRACK","Layer 2"]
[null,null,null,null,null,null,null,null,null,null,null,null,null,null,null,"Layer 3"]
[null,null,null,null,null,null,null,null,null,null,null,null,null,null,null,"Layer 4"]
[null,null,null,null,null,null,null,null,null,null,null,null,null,null,null,"Layer 5"]
[null,null,null,null,null,"PCB No.",null,null,null,null,null,null,null,null,null,"Layer 6"]
[null,null,null,null,null,"PCB Name",null,null,null,null,null,null,null,null,null,"Layer 7"]
[null,"10 LAYER PCB STACKUP",null,null,null,null,null,null,null,null,null,null,null,null,null,"Layer 8"]
[null,null,null,null,"Thickness","Ref. Upper","Ref. Lower","H1a","h2","H1","H","ha","Impedance  Zo",null,null,"Layer 9",null,null,"Trace Width"]
[null,null,null,null,null,null,null,null,null,null,null,null,null,null,null,"Layer 10"]
[null,null,null,null,null,null,null,null,null,null,null,null,null,null,null,"Layer 11"]
[null,"Layer 1","TRACK",null,1,null,"Layer 2",null,null,null,{"$f":"IF(G13=\"layer 2\",E14,IF(G13=\"layer 3\",E14+E15+E16,IF(G13=\"layer 4\",E14+E15+E16+E17+E18,IF(G13=\"layer 5\",E14+E15+E16+E17+E18+E19+E20,))))","v":5},null,{"$f":"IF(C13=\"plane\",O2,60/SQRT(0.475*C42+0.67)*LN((4*K13)/(0.67*(0.8*S13+E13))))","v":65.670717951476661},null,null,"Layer 12",null,null,5]
[null,null,null,null,5,null,null,null,null,null,null,null,null,null,null,"Layer 13"]
[null,"Layer 2","PLANE",null,1,null,null,{"$f":"IF(K15>J15,J15,K15)","v":0},{"$f":"K15+E15+E14+E13","v":7},{"$f":"E14","v":5},{"$f":"IF(G15=\"layer 3\",E16,IF(G15=\"layer 4\",E16+E17+E18,IF(G15=\"layer 5\",E16+E17+E18+E19+E20,IF(G15=\"layer 10\",E16+E17+E18+E19+E20+E21+E22+E23+E24+E25+E26+E27+E28+E29+E30+E31+E32+E33+E34+E35+E36+E37+E38,))))","v":0},{"$f":"IF(K15<J15,J15,K15)","v":5},{"$f":"IF(C15=\"plane\",O2,IF(F15=\"\",(60/SQRT(N15))*LN((5.98*K15)/(0.8*S15+E15)),IF(F15=\"layer 1\",(80/SQRT(C42))*LN((1.9*(2*E14+E15))/(0.8*S15+E15))*(1-(H15/(4*L15))),)))","v":"PLANE"},{"$f":"C42*(1-(EXP((-1.55*I15)/K15)))","v":{"$error":"#DIV/0!"}},null,"Layer 14",null,null,5]
[null,null,null,null,5]
[null,"Layer 3","TRACK",null,1,"Layer 2","Layer 5",{"$f":"IF(K17>J17,J17,K17)","v":5},{"$f":"K17+E17+E16+E15+E14+E13","v":24},{"$f":"IF(F17=\"layer 2\",E16,IF(F17=\"layer 1\",E14+E15+E16,))","v":5},{"$f":"IF(G17=\"layer 4\",E18,IF(G17=\"layer 5\",E18+E19+E20,IF(G17=\"layer 9\",E18+E19+E20+E21+E22+E23+E24+E25+E26+E27+E28+E29+E30+E31+E32+E33+E34+E35+E36,IF(G17=\"layer 10\",E18+E19+E20+E21+E22+E23+E24+E25+E26+E27+E28+E29+E30+E31+E32+E33+E34+E35+E36+E37+E38,))))","v":11},{"$f":"IF(K17<J17,J17,K17)","v":11},{"$f":"IF(C17=\"plane\",O2,IF(F17=\"\",(60/SQRT(N17))*LN((5.98*K17)/(0.8*S17+E17)),IF(F17=\"Layer 1\",(80/SQRT(C42))*LN((1.9*(2*H17+E17))/(0.8*S17+E17))*(1-(H17/(4*L17))),IF(F17=\"Layer 2\",(80/SQRT(C42))*LN((1.9*(2*H17+E17))/(0.8*S17+E17))*(1-(H17/(4*L17))),))))","v":49.488902857759371},{"$f":"C42*(1-(EXP((-1.55*I17)/K17)))","v":4.0572604526406186},null,null,null,null,5]
[null,null,null,null,5]
[null,"Layer 4","TRACK",null,1,"Layer 2","Layer 5",{"$f":"IF(K19>J19,J19,K19)","v":5},{"$f":"K19+E19+E18+E17+E16+E15+E14+E13","v":24},{"$f":"IF(F19=\"layer 3\",E18,IF(F19=\"layer 2\",E18+E17+E16,IF(F19=\"layer 1\",E18+E17+E16+E14,)))","v":11},{"$f":"IF(G19=\"layer 5\",E20,IF(G19=\"layer 8\",E20+E21+E22+E23+E24+E25+E26+E27+E28+E29+E30+E31+E32+E33+E34,IF(G19=\"layer 9\",E20+E21+E22+E23+E24+E25+E26+E27+E28+E29+E30+E31+E32+E33+E34+E35+E36,IF(G19=\"layer 10\",E20+E21+E22+E23+E24+E25+E26+E27+E28+E29+E30+E31+E32+E33+E34+E35+E36+E37+E38,))))","v":5},{"$f":"IF(K19<J19,J19,K19)","v":11},{"$f":"IF(C19=\"plane\",O2,IF(F19=\"\",(60/SQRT(N19))*LN((5.98*K19)/(0.8*S19+E19)),IF(F19=\"Layer 1\",(80/SQRT(C42))*LN((1.9*(2*H19+E19))/(0.8*S19+E19))*(1-(H19/(4*L19))),IF(F19=\"Layer 2\",(80/SQRT(C42))*LN((1.9*(2*H19+E19))/(0.8*S19+E19))*(1-(H19/(4*L19))),IF(F19=\"Layer 3\",(80/SQRT(C42))*LN((1.9*(2*H19+E19))/(0.8*S19+E19))*(1-(H19/(4*L19))),)))))","v":49.488902857759371},{"$f":"C42*(1-(EXP((-1.55*I19)/K19)))","v":4.1975334021703068},null,null,null,null,5]
[null,null,null,null,5]
[null,"Layer 5","PLANE",null,1,null,null,{"$f":"IF(K21>J21,J21,K21)","v":0},{"$f":"K21+E21+E20+E19+E18+E17+E16+E15+E14+E13","v":25},{"$f":"IF(F21=\"layer 4\",E20,IF(F21=\"layer 3\",E20+E19+E18,IF(F21=\"layer 2\",E20+E19+E18+E17+E16,IF(F21=\"layer 1\",E20+E19+E18+E17+E16+E15+E14,))))","v":0},{"$f":"IF(G21=\"layer 7\",E22+E23+E24+E25+E26+E27+E30+E31+E32,IF(G21=\"layer 8\",E22+E23+E24+E25+E26+E27+E28+E29+E30+E31+E32+E33+E34,IF(G21=\"layer 9\",E22+E23+E24+E25+E26+E27+E28+E29+E30+E31+E32+E33+E34+E35+E36,IF(G21=\"layer 10\",E22+E23+E24+E25+E26+E27+E28+E29+E30+E31+E32+E33+E34+E35+E36+E37+E38,))))","v":0},{"$f":"IF(K21<J21,J21,K21)","v":0},{"$f":"IF(C21=\"plane\",O2,IF(F21=\"\",(60/SQRT(N21))*LN((5.98*K21)/(0.8*S21+E21)),IF(F21=\"Layer 1\",(80/SQRT(C42))*LN((1.9*(2*H21+E21))/(0.8*S21+E21))*(1-(H21/(4*L21))),IF(F21=\"Layer 2\",(80/SQRT(C42))*LN((1.9*(2*H21+E21))/(0.8*S21+E21))*(1-(H21/(4*L21))),IF(F21=\"Layer 3\",(80/SQRT(C42))*LN((1.9*(2*H21+E21))/(0.8*S21+E21))*(1-(H21/(4*L21))),IF(F21=\"Layer 4\",(80/SQRT(C42))*LN((1.9*(2*H21+E21))/(0.8*S21+E21))*(1-(H21/(4*L21))),))))))","v":"PLANE"},{"$f":"C42*(1-(EXP((-1.55*I21)/K21)))","v":{"$error":"#DIV/0!"}},null,null,null,null,5]
[null,null,null,null,0]
[null,"Layer 0","TRACK",null,0,null,null,{"$f":"IF(K23>J23,J23,K23)","v":0},{"$f":"K23+E23+E22+E21+E20+E19+E18+E17+E16+E15+E14+E13","v":25},{"$f":"IF(F23=\"layer 5\",E22,IF(F23=\"layer 4\",E22+E21+E20,IF(F23=\"layer 3\",E22+E21+E20+E19+E18,IF(F23=\"layer 2\",E22+E21+E20+E19+E18+E17+E16,IF(F23=\"layer 1\",E22+E21+E20+E19+E18+E17+E16+E15+E14,)))))","v":0},{"$f":"IF(G23=\"layer 7\",E24,IF(G23=\"layer 10\",E24+E25+E26+E27+E28+E29+E30,IF(G23=\"layer11\",E24+E25+E26+E27+E28+E29+E32,IF(G23=\"layer 12\",E24+E25+E26+E27+E28+E29+E32+E33+E34,IF(G23=\"layer 13\",E24+E25+E26+E27+E28+E29+E32+E33+E34+E35+E36,IF(G23=\"layer 14\",E24+E25+E26+E27+E28+E29+E30+E31+E32+E33+E34+E35+E36+E37+E38,))))))","v":0},{"$f":"IF(K23<J23,J23,K23)","v":0},{"$f":"IF(C23=\"plane\",O2,IF(F23=\"\",(60/SQRT(N23))*LN((5.98*K23)/(0.8*S23+E23)),IF(F23=\"Layer 1\",(80/SQRT(C42))*LN((1.9*(2*H23+E23))/(0.8*S23+E23))*(1-(H23/(4*L23))),IF(F23=\"Layer 2\",(80/SQRT(C42))*LN((1.9*(2*H23+E23))/(0.8*S23+E23))*(1-(H23/(4*L23))),IF(F23=\"Layer 3\",(80/SQRT(C42))*LN((1.9*(2*H23+E23))/(0.8*S23+E23))*(1-(H23/(4*L23))),IF(F23=\"Layer 4\",(80/SQRT(C42))*LN((1.9*(2*H23+E23))/(0.8*S23+E23))*(1-(H23/(4*L23))),IF(F23=\"Layer 5\",(80/SQRT(C42))*LN((1.9*(2*J23+E23))/(0.8*S23+E23))*(1-(H23/(4*L23))),)))))))","v":{"$error":"#DIV/0!"}},{"$f":"C42*(1-(EXP((-1.55*I23)/K23)))","v":{"$error":"#DIV/0!"}},null,null,null,null,5]
[null,null,null,null,0]
[null,"Layer 0","TRACK",null,0,null,null,{"$f":"IF(K25>J25,J25,K25)","v":0},null,{"$f":"IF(F25=\"layer 6\",E24,IF(F23=\"layer 5\",E24+E23+E22,IF(F25=\"layer 4\",E24+E23+E22,IF(F25=\"layer 3\",E24+E23+E22+E21+E20,IF(F25=\"layer 2\",E24+E23+E22+E21+E20+E19+E18,IF(F25=\"layer 1\",E24+E23+E22+E21+E20+E19+E18+E17+E16,))))))","v":0},{"$f":"IF(G25=\"layer 9\",E26+E27+E28,IF(G25=\"layer 10\",E26+E27+E28+E29+E30,IF(G25=\"layer 11\",E26+E27+E28+E29+E30+E31+E32,IF(G25=\"layer 12\",E26+E27+E28+E29+E30+E31+E32+E33+E34,IF(G25=\"layer 13\",E26+E27+E28+E29+E30+E31+E32+E33+E34+E35+E36,IF(G25=\"layer 14\",E26+E27+E28+E29+E30+E31+E32+E33+E34+E35+E36+E37+E38,))))))","v":0},{"$f":"IF(K25<J25,J25,K25)","v":0},{"$f":"IF(C25=\"plane\",O2,(80/SQRT(C42))*LN((1.9*(2*H25+E25))/(0.8*S25+E25))*(1-(H25/(4*L25))))","v":{"$error":"#NUM!"}},null,null,null,null,null,5]
[null,null,"Middle",null,5]
[null,"Layer 0",{"$f":"C25","v":"TRACK"},null,{"$f":"E25","v":0},null,null,null,null,null,null,null,{"$f":"M25","v":{"$error":"#NUM!"}},null,null,null,null,null,5]
[null,null,null,null,{"$f":"E24","v":0}]
[null,"Layer 0",{"$f":"C23","v":"TRACK"},null,{"$f":"E23","v":0},null,null,null,null,null,null,null,{"$f":"M23","v":{"$error":"#DIV/0!"}},null,null,null,null,null,{"$f":"S23","v":5}]
[null,null,null,null,0]
[null,"Layer 6",{"$f":"C21","v":"PLANE"},null,1,null,null,null,null,null,null,null,{"$f":"M21","v":"PLANE"},null,null,null,null,null,{"$f":"S21","v":5}]
[null,null,null,null,{"$f":"E20","v":5},null,null,null,null,null,null,null,null,null,null,null,null,null,null,null,null,null," PCB SIZE REQUIRED"]
[null,"Layer 7",{"$f":"C19","v":"TRACK"},null,{"$f":"E19","v":1},null,null,null,null,null,null,null,{"$f":"M19","v":49.488902857759371},null,null,null,null,null,{"$f":"S19","v":5},null,null,null,"PCB",1.6]
[null,null,null,null,{"$f":"E18","v":5},null,null,null,null,null,null,null,null,null,null,null,null,null,null,null,null,null,"TOLERENCE",5]
[null,"Layer 8",{"$f":"C17","v":"TRACK"},null,{"$f":"E17","v":1},null,null,null,null,null,null,null,{"$f":"M17","v":49.488902857759371},null,null,null,null,null,{"$f":"S17","v":5},null,null,null,"    TOTAL"]
[null,null,null,null,{"$f":"E16","v":5},null,null,null,null,null,null,null,null,null,null,null,null,null,null,null,null,null,"MAX.",{"$f":"X33/100*X34+X33","v":1.6800000000000002}]
[null,"Layer 9",{"$f":"C15","v":"PLANE"},null,{"$f":"E15","v":1},null,null,null,null,null,null,null,{"$f":"M15","v":"PLANE"},null,null,null,null,null,{"$f":"S15","v":5},null,null,null,"MIN.",{"$f":"X33-(X33/100*X34)","v":1.52}]
[null,null,null,null,{"$f":"E14","v":5}]
[null,"Layer 10",{"$f":"C13","v":"TRACK"},null,{"$f":"E13","v":1},null,null,null,null,null,null,null,{"$f":"M13","v":65.670717951476661},null,null,null,null,null,{"$f":"S13","v":5}]
[]
[null,null,null,null,null,null,null,null,null,null,null,null,null,null,null,null,null,null,null,null,null,null,"    TOTAL"]
[null,"ER=",4.2,null,null,null,null,null,null,null,null,null,null,null,null,null,null,null,null,null,null,null,{"$f":"E13+E14+E16+E15+E17+E18+E19+E20+E21+E22+E23+E24+E25+E26+E27+E28+E29+E30+E31+E32+E33+E34+E35+E36+E37+E38+E39","v":55}]

{"sheet":"12 layer pcb","index":16,"n_rows":42,"n_cols":24,"rows_kept":42,"cut":false,"hidden":false,"merged":[[9,18,9,20]]}
[1]
[null,null,null,null,null,null,null,null,null,null,null,null,null,null,"PLANE","Layer 1"]
[null,null,null,null,null,null,null,null,null,null,null,null,null,null,"TRACK","Layer 2"]
[null,null,null,null,null,null,null,null,null,null,null,null,null,null,null,"Layer 3"]
[null,null,null,null,null,null,null,null,null,null,null,null,null,null,null,"Layer 4"]
[null,null,null,null,null,null,null,null,null,null,null,null,null,null,null,"Layer 5"]
[null,null,null,null,null,"PCB No.",null,null,null,null,null,null,null,null,null,"Layer 6"]
[null,null,null,null,null,"PCB Name",null,null,null,null,null,null,null,null,null,"Layer 7"]
[null,"12 LAYER PCB STACKUP",null,null,null,null,null,null,null,null,null,null,null,null,null,"Layer 8"]
[null,null,null,null,"Thickness","Ref. Upper","Ref. Lower","H1a","h2","H1","H","ha","Impedance  Zo",null,null,"Layer 9",null,null,"Trace Width"]
[null,null,null,null,null,null,null,null,null,null,null,null,null,null,null,"Layer 10"]
[null,null,null,null,null,null,null,null,null,null,null,null,null,null,null,"Layer 11"]
[null,"Layer 1","PLANE",null,45,null,null,null,null,null,{"$f":"IF(G13=\"layer 2\",E14,IF(G13=\"layer 3\",E14+E15+E16,IF(G13=\"layer 4\",E14+E15+E16+E17+E18,IF(G13=\"layer 5\",E14+E15+E16+E17+E18+E19+E20,IF(G13=\"layer 6\",E14+E15+E16+E17+E18+E19+E20+E21+E22,)))))","v":0},null,{"$f":"IF(C13=\"plane\",O2,60/SQRT(0.475*C42+0.67)*LN((4*K13)/(0.67*(0.8*S13+E13))))","v":"PLANE"},null,null,"Layer 12",null,null,125]
[null,null,null,null,50,null,null,null,null,null,null,null,null,null,null,"Layer 13"]
[null,"Layer 2","TRACK",null,40,"Layer 1","Layer 5",{"$f":"IF(K15>J15,J15,K15)","v":50},{"$f":"K15+E15+E14+E13","v":550},{"$f":"E14","v":50},{"$f":"IF(G15=\"layer 3\",E16,IF(G15=\"layer 4\",E16+E17+E18,IF(G15=\"layer 5\",E16+E17+E18+E19+E20,IF(G15=\"layer 6\",E16+E17+E18+E19+E20+E21+E22,IF(G15=\"layer 11\",E16+E17+E18+E19+E20+E21+E22+E23+E24+E25+E26+E27+E28+E29+E30+E31+E32+E33+E34+E35+E36+E37+E38,)))))","v":415},{"$f":"IF(K15<J15,J15,K15)","v":415},{"$f":"IF(C15=\"plane\",O2,IF(F15=\"\",(60/SQRT(N15))*LN((5.98*K15)/(0.8*S15+E15)),IF(F15=\"layer 1\",(80/SQRT(C42))*LN((1.9*(2*E14+E15))/(0.8*S15+E15))*(1-(H15/(4*L15))),)))","v":24.300729144194758},{"$f":"C42*(1-(EXP((-1.55*I15)/K15)))","v":3.6615886081586635},null,"Layer 14",null,null,125]
[null,null,null,null,57]
[null,"Layer 3","TRACK",null,40,"Layer 1","Layer 5",{"$f":"IF(K17>J17,J17,K17)","v":147},{"$f":"K17+E17+E16+E15+E14+E13","v":550},{"$f":"IF(F17=\"layer 2\",E16,IF(F17=\"layer 1\",E14+E15+E16,))","v":147},{"$f":"IF(G17=\"layer 4\",E18,IF(G17=\"layer 5\",E18+E19+E20,IF(G17=\"layer 6\",E18+E19+E20+E21+E22,IF(G17=\"layer 11\",E18+E19+E20+E21+E22+E23+E24+E25+E26+E27+E28+E29+E30+E31+E32+E33+E34+E35+E36,IF(G17=\"layer 11\",E18+E19+E20+E21+E22+E23+E24+E25+E26+E27+E28+E29+E30+E31+E32+E33+E34+E35+E36+E37+E38,)))))","v":318},{"$f":"IF(K17<J17,J17,K17)","v":318},{"$f":"IF(C17=\"plane\",O2,IF(F17=\"\",(60/SQRT(N17))*LN((5.98*K17)/(0.8*S17+E17)),IF(F17=\"Layer 1\",(80/SQRT(C42))*LN((1.9*(2*H17+E17))/(0.8*S17+E17))*(1-(H17/(4*L17))),IF(F17=\"Layer 2\",(80/SQRT(C42))*LN((1.9*(2*H17+E17))/(0.8*S17+E17))*(1-(H17/(4*L17))),))))","v":52.179091011372407},{"$f":"C42*(1-(EXP((-1.55*I17)/K17)))","v":3.9122700996119368},null,null,null,null,125]
[null,null,null,null,60]
[null,"Layer 4","TRACK",null,40,"Layer 1","Layer 5",{"$f":"IF(K19>J19,J19,K19)","v":207},{"$f":"K19+E19+E18+E17+E16+E15+E14+E13","v":550},{"$f":"IF(F19=\"layer 3\",E18,IF(F19=\"layer 2\",E18+E17+E16,IF(F19=\"layer 1\",E18+E17+E16+E14,)))","v":207},{"$f":"IF(G19=\"layer 5\",E20,IF(G19=\"layer 6\",E20+E21+E22,IF(G19=\"layer 10\",E20+E21+E22+E23+E24+E25+E26+E27+E28+E29+E30+E31+E32+E33+E34,IF(G19=\"layer 11\",E20+E21+E22+E23+E24+E25+E26+E27+E28+E29+E30+E31+E32+E33+E34+E35+E36,IF(G19=\"layer 12\",E20+E21+E22+E23+E24+E25+E26+E27+E28+E29+E30+E31+E32+E33+E34+E35+E36+E37+E38,)))))","v":218},{"$f":"IF(K19<J19,J19,K19)","v":218},{"$f":"IF(C19=\"plane\",O2,IF(F19=\"\",(60/SQRT(N19))*LN((5.98*K19)/(0.8*S19+E19)),IF(F19=\"Layer 1\",(80/SQRT(C42))*LN((1.9*(2*H19+E19))/(0.8*S19+E19))*(1-(H19/(4*L19))),IF(F19=\"Layer 2\",(80/SQRT(C42))*LN((1.9*(2*H19+E19))/(0.8*S19+E19))*(1-(H19/(4*L19))),IF(F19=\"Layer 3\",(80/SQRT(C42))*LN((1.9*(2*H19+E19))/(0.8*S19+E19))*(1-(H19/(4*L19))),)))))","v":54.130010294005025},{"$f":"C42*(1-(EXP((-1.55*I19)/K19)))","v":4.1158762149588863},null,null,null,null,125]
[null,null,null,null,218]
[null,"Layer 5","PLANE",null,40,null,null,{"$f":"IF(K21>J21,J21,K21)","v":0},{"$f":"K21+E21+E20+E19+E18+E17+E16+E15+E14+E13","v":590},{"$f":"IF(F21=\"layer 4\",E20,IF(F21=\"layer 3\",E20+E19+E18,IF(F21=\"layer 2\",E20+E19+E18+E17+E16,IF(F21=\"layer 1\",E20+E19+E18+E17+E16+E15+E14,))))","v":0},{"$f":"IF(G21=\"layer 6\",E22,IF(G21=\"layer 9\",E22+E23+E24+E25+E26+E27+E30+E31+E32,IF(G21=\"layer 10\",E22+E23+E24+E25+E26+E27+E28+E29+E30+E31+E32+E33+E34,IF(G21=\"layer 11\",E22+E23+E24+E25+E26+E27+E28+E29+E30+E31+E32+E33+E34+E35+E36,IF(G21=\"layer 12\",E22+E23+E24+E25+E26+E27+E28+E29+E30+E31+E32+E33+E34+E35+E36+E37+E38,)))))","v":0},{"$f":"IF(K21<J21,J21,K21)","v":0},{"$f":"IF(C21=\"plane\",O2,IF(F21=\"\",(60/SQRT(N21))*LN((5.98*K21)/(0.8*S21+E21)),IF(F21=\"Layer 1\",(80/SQRT(C42))*LN((1.9*(2*H21+E21))/(0.8*S21+E21))*(1-(H21/(4*L21))),IF(F21=\"Layer 2\",(80/SQRT(C42))*LN((1.9*(2*H21+E21))/(0.8*S21+E21))*(1-(H21/(4*L21))),IF(F21=\"Layer 3\",(80/SQRT(C42))*LN((1.9*(2*H21+E21))/(0.8*S21+E21))*(1-(H21/(4*L21))),IF(F21=\"Layer 4\",(80/SQRT(C42))*LN((1.9*(2*H21+E21))/(0.8*S21+E21))*(1-(H21/(4*L21))),))))))","v":"PLANE"},{"$f":"C42*(1-(EXP((-1.55*I21)/K21)))","v":{"$error":"#DIV/0!"}},null,null,null,null,125]
[null,null,null,null,60]
[null,"Layer 6","TRACK",null,40,"Layer 5","Layer 8",{"$f":"IF(K23>J23,J23,K23)","v":60},{"$f":"K23+E23+E22+E21+E20+E19+E18+E17+E16+E15+E14+E13","v":898},{"$f":"IF(F23=\"layer 5\",E22,IF(F23=\"layer 4\",E22+E21+E20,IF(F23=\"layer 3\",E22+E21+E20+E19+E18,IF(F23=\"layer 2\",E22+E21+E20+E19+E18+E17+E16,IF(F23=\"layer 1\",E22+E21+E20+E19+E18+E17+E16+E15+E14,)))))","v":60},{"$f":"IF(G23=\"layer 8\",E24+E25+E26+E27+E28+E29+E30,IF(G23=\"layer 9\",E24+E25+E26+E27+E28+E29+E32,IF(G23=\"layer 10\",E24+E25+E26+E27+E28+E29+E32+E33+E34,IF(G23=\"layer 11\",E24+E25+E26+E27+E28+E29+E32+E33+E34+E35+E36,IF(G23=\"layer 12\",E24+E25+E26+E27+E28+E29+E30+E31+E32+E33+E34+E35+E36+E37+E38,)))))","v":208},{"$f":"IF(K23<J23,J23,K23)","v":208},{"$f":"IF(C23=\"plane\",O2,IF(F23=\"\",(60/SQRT(N23))*LN((5.98*K23)/(0.8*S23+E23)),IF(F23=\"Layer 1\",(80/SQRT(C42))*LN((1.9*(2*H23+E23))/(0.8*S23+E23))*(1-(H23/(4*L23))),IF(F23=\"Layer 2\",(80/SQRT(C42))*LN((1.9*(2*H23+E23))/(0.8*S23+E23))*(1-(H23/(4*L23))),IF(F23=\"Layer 3\",(80/SQRT(C42))*LN((1.9*(2*H23+E23))/(0.8*S23+E23))*(1-(H23/(4*L23))),IF(F23=\"Layer 4\",(80/SQRT(C42))*LN((1.9*(2*H23+E23))/(0.8*S23+E23))*(1-(H23/(4*L23))),IF(F23=\"Layer 5\",(80/SQRT(C42))*LN((1.9*(2*J23+E23))/(0.8*S23+E23))*(1-(H23/(4*L23))),)))))))","v":28.085157726391955},{"$f":"C42*(1-(EXP((-1.55*I23)/K23)))","v":4.1947877434489769},null,null,null,null,125]
[null,null,null,null,0]
[null,null,"TRACK",null,0,null,null,{"$f":"IF(K25>J25,J25,K25)","v":0},null,{"$f":"IF(F25=\"layer 6\",E24,IF(F23=\"layer 5\",E24+E23+E22,IF(F25=\"layer 4\",E24+E23+E22,IF(F25=\"layer 3\",E24+E23+E22+E21+E20,IF(F25=\"layer 2\",E24+E23+E22+E21+E20+E19+E18,IF(F25=\"layer 1\",E24+E23+E22+E21+E20+E19+E18+E17+E16,))))))","v":100},{"$f":"IF(G25=\"layer 9\",E26+E27+E28,IF(G25=\"layer 10\",E26+E27+E28+E29+E30,IF(G25=\"layer 11\",E26+E27+E28+E29+E30+E31+E32,IF(G25=\"layer 12\",E26+E27+E28+E29+E30+E31+E32+E33+E34,IF(G25=\"layer 13\",E26+E27+E28+E29+E30+E31+E32+E33+E34+E35+E36,IF(G25=\"layer 14\",E26+E27+E28+E29+E30+E31+E32+E33+E34+E35+E36+E37+E38,))))))","v":0},{"$f":"IF(K25<J25,J25,K25)","v":100},{"$f":"IF(C25=\"plane\",O2,(80/SQRT(C42))*LN((1.9*(2*H25+E25))/(0.8*S25+E25))*(1-(H25/(4*L25))))","v":{"$error":"#NUM!"}},null,null,null,null,null,5]
[null,null,"Middle",null,108]
[null,null,{"$f":"C25","v":"TRACK"},null,0,null,null,null,null,null,null,null,{"$f":"M25","v":{"$error":"#NUM!"}},null,null,null,null,null,5]
[null,null,null,null,0]
[null,"Layer 7",{"$f":"C23","v":"TRACK"},null,{"$f":"E23","v":40},null,null,null,null,null,null,null,{"$f":"M23","v":28.085157726391955},null,null,null,null,null,{"$f":"S23","v":125}]
[null,null,null,null,{"$f":"E22","v":60}]
[null,"Layer 8",{"$f":"C21","v":"PLANE"},null,{"$f":"E21","v":40},null,null,null,null,null,null,null,{"$f":"M21","v":"PLANE"},null,null,null,null,null,{"$f":"S21","v":125}]
[null,null,null,null,{"$f":"E20","v":218},null,null,null,null,null,null,null,null,null,null,null,null,null,null,null,null,null," PCB SIZE REQUIRED"]
[null,"Layer 9",{"$f":"C19","v":"TRACK"},null,{"$f":"E19","v":40},null,null,null,null,null,null,null,{"$f":"M19","v":54.130010294005025},null,null,null,null,null,{"$f":"S19","v":125},null,null,null,"PCB",1.6]
[null,null,null,null,{"$f":"E18","v":60},null,null,null,null,null,null,null,null,null,null,null,null,null,null,null,null,null,"TOLERENCE",5]
[null,"Layer 10",{"$f":"C17","v":"TRACK"},null,{"$f":"E17","v":40},null,null,null,null,null,null,null,{"$f":"M17","v":52.179091011372407},null,null,null,null,null,{"$f":"S17","v":125},null,null,null,"    TOTAL"]
[null,null,null,null,{"$f":"E16","v":57},null,null,null,null,null,null,null,null,null,null,null,null,null,null,null,null,null,"MAX.",{"$f":"X33/100*X34+X33","v":1.6800000000000002}]
[null,"Layer 11",{"$f":"C15","v":"TRACK"},null,{"$f":"E15","v":40},null,null,null,null,null,null,null,{"$f":"M15","v":24.300729144194758},null,null,null,null,null,{"$f":"S15","v":125},null,null,null,"MIN.",{"$f":"X33-(X33/100*X34)","v":1.52}]
[null,null,null,null,{"$f":"E14","v":50}]
[null,"Layer 12",{"$f":"C13","v":"PLANE"},null,{"$f":"E13","v":45},null,null,null,null,null,null,null,{"$f":"M13","v":"PLANE"},null,null,null,null,null,{"$f":"S13","v":125}]
[]
[null,null,null,null,null,null,null,null,null,null,null,null,null,null,null,null,null,null,null,null,null,null,"    TOTAL"]
[null,"ER=",4.2,null,null,null,null,null,null,null,null,null,null,null,null,null,null,null,null,null,null,null,{"$f":"E13+E14+E16+E15+E17+E18+E19+E20+E21+E22+E23+E24+E25+E26+E27+E28+E29+E30+E31+E32+E33+E34+E35+E36+E37+E38+E39","v":1488}]

{"sheet":"14 layer pcb","index":17,"n_rows":42,"n_cols":24,"rows_kept":42,"cut":false,"hidden":false,"merged":[[9,18,9,20]]}
[1]
[null,null,null,null,null,null,null,null,null,null,null,null,null,null,"PLANE","Layer 1"]
[null,null,null,null,null,null,null,null,null,null,null,null,null,null,"TRACK","Layer 2"]
[null,null,null,null,null,null,null,null,null,null,null,null,null,null,null,"Layer 3"]
[null,null,null,null,null,null,null,null,null,null,null,null,null,null,null,"Layer 4"]
[null,null,null,null,null,null,null,null,null,null,null,null,null,null,null,"Layer 5"]
[null,null,null,null,null,"PCB No.",null,null,null,null,null,null,null,null,null,"Layer 6"]
[null,null,null,null,null,"PCB Name",null,null,null,null,null,null,null,null,null,"Layer 7"]
[null,"14 LAYER PCB STACKUP",null,null,null,null,null,null,null,null,null,null,null,null,null,"Layer 8"]
[null,null,null,null,"Thickness","Ref. Upper","Ref. Lower","H1a","h2","H1","H","ha","Impedance  Zo",null,null,"Layer 9",null,null,"Trace Width"]
[null,null,null,null,null,null,null,null,null,null,null,null,null,null,null,"Layer 10"]
[null,null,null,null,null,null,null,null,null,null,null,null,null,null,null,"Layer 11"]
[null,"Layer 1","TRACK",null,1,null,"Layer 3",null,null,null,{"$f":"IF(G13=\"layer 2\",E14,IF(G13=\"layer 3\",SUM(E14:E16),IF(G13=\"layer 4\",SUM(E14:E18),IF(G13=\"layer 5\",SUM(E14:E20),IF(G13=\"layer 6\",SUM(E14:E22),IF(G13=\"layer 7\",SUM(E14:E24),))))))","v":11},null,{"$f":"IF(C13=\"plane\",O2,60/SQRT(0.475*C42+0.67)*LN((4*K13)/(0.67*(0.8*S13+E13))))","v":94.649548503961327},null,null,"Layer 12",null,null,5]
[null,null,null,null,5,null,null,null,null,null,null,null,null,null,null,"Layer 13"]
[null,"Layer 2","TRACK",null,1,null,"Layer 3",{"$f":"IF(K15>J15,J15,K15)","v":5},{"$f":"K15+E15+E14+E13","v":12},{"$f":"E14","v":5},{"$f":"IF(G15=\"layer 3\",E16,IF(G15=\"layer 4\",SUM(E16:E18),IF(G15=\"layer 5\",E16+E17+E18+E19+E20,IF(G15=\"layer 6\",E16+E17+E18+E19+E20+E21+E22,IF(G15=\"layer 7\",E16+E17+E18+E19+E20+E21+E22+E23+E24,IF(G15=\"layer 14\",E16+E17+E18+E19+E20+E21+E22+E23+E24+E25+E26+E27+E28+E29+E30+E31+E32+E33+E34+E35+E36+E37+E38,))))))","v":5},{"$f":"IF(K15<J15,J15,K15)","v":5},{"$f":"IF(C15=\"plane\",O2,IF(F15=\"\",(60/SQRT(N15))*LN((5.98*K15)/(0.8*S15+E15)),IF(F15=\"layer 1\",(80/SQRT(C42))*LN((1.9*(2*E14+E15))/(0.8*S15+E15))*(1-(H15/(4*L15))),)))","v":53.005802404025488},{"$f":"C42*(1-(EXP((-1.55*I15)/K15)))","v":4.0982173350480977},null,"Layer 14",null,null,5]
[null,null,null,null,5]
[null,"Layer 3","PLANE",null,1,null,null,{"$f":"IF(K17>J17,J17,K17)","v":0},{"$f":"K17+E17+E16+E15+E14+E13","v":13},{"$f":"IF(F17=\"layer 2\",E16,IF(F17=\"layer 1\",E14+E15+E16,))","v":0},{"$f":"IF(G17=\"layer 4\",E18,IF(G17=\"layer 5\",E18+E19+E20,IF(G17=\"layer 6\",E18+E19+E20+E21+E22,IF(G17=\"layer 7\",E18+E19+E20+E21+E22+E23+E24,IF(G17=\"layer 13\",E18+E19+E20+E21+E22+E23+E24+E25+E26+E27+E28+E29+E30+E31+E32+E33+E34+E35+E36,IF(G17=\"layer 14\",E18+E19+E20+E21+E22+E23+E24+E25+E26+E27+E28+E29+E30+E31+E32+E33+E34+E35+E36+E37+E38,))))))","v":0},{"$f":"IF(K17<J17,J17,K17)","v":0},{"$f":"IF(C17=\"plane\",O2,IF(F17=\"\",(60/SQRT(N17))*LN((5.98*K17)/(0.8*S17+E17)),IF(F17=\"Layer 1\",(80/SQRT(C42))*LN((1.9*(2*H17+E17))/(0.8*S17+E17))*(1-(H17/(4*L17))),IF(F17=\"Layer 2\",(80/SQRT(C42))*LN((1.9*(2*H17+E17))/(0.8*S17+E17))*(1-(H17/(4*L17))),))))","v":"PLANE"},{"$f":"C42*(1-(EXP((-1.55*I17)/K17)))","v":{"$error":"#DIV/0!"}},null,null,null,null,5]
[null,null,null,null,5]
[null,"Layer 4","TRACK",null,1,"Layer 3","Layer 5",{"$f":"IF(K19>J19,J19,K19)","v":5},{"$f":"K19+E19+E18+E17+E16+E15+E14+E13","v":24},{"$f":"IF(F19=\"layer 3\",E18,IF(F19=\"layer 2\",E18+E17+E16,IF(F19=\"layer 1\",E18+E17+E16+E14,)))","v":5},{"$f":"IF(G19=\"layer 5\",E20,IF(G19=\"layer 6\",E20+E21+E22,IF(G19=\"layer 7\",E20+E21+E22+E23+E24,IF(G19=\"layer 12\",E20+E21+E22+E23+E24+E25+E26+E27+E28+E29+E30+E31+E32+E33+E34,IF(G19=\"layer 13\",E20+E21+E22+E23+E24+E25+E26+E27+E28+E29+E30+E31+E32+E33+E34+E35+E36,IF(G19=\"layer 14\",E20+E21+E22+E23+E24+E25+E26+E27+E28+E29+E30+E31+E32+E33+E34+E35+E36+E37+E38,))))))","v":5},{"$f":"IF(K19<J19,J19,K19)","v":5},{"$f":"IF(C19=\"plane\",O2,IF(F19=\"\",(60/SQRT(N19))*LN((5.98*K19)/(0.8*S19+E19)),IF(F19=\"Layer 1\",(80/SQRT(C42))*LN((1.9*(2*H19+E19))/(0.8*S19+E19))*(1-(H19/(4*L19))),IF(F19=\"Layer 2\",(80/SQRT(C42))*LN((1.9*(2*H19+E19))/(0.8*S19+E19))*(1-(H19/(4*L19))),IF(F19=\"Layer 3\",(80/SQRT(C42))*LN((1.9*(2*H19+E19))/(0.8*S19+E19))*(1-(H19/(4*L19))),)))))","v":41.875225495027159},{"$f":"C42*(1-(EXP((-1.55*I19)/K19)))","v":4.1975334021703068},null,null,null,null,5]
[null,null,null,null,5]
[null,"Layer 5","PLANE",null,1,null,null,{"$f":"IF(K21>J21,J21,K21)","v":0},{"$f":"K21+E21+E20+E19+E18+E17+E16+E15+E14+E13","v":25},{"$f":"IF(F21=\"layer 4\",E20,IF(F21=\"layer 3\",E20+E19+E18,IF(F21=\"layer 2\",E20+E19+E18+E17+E16,IF(F21=\"layer 1\",E20+E19+E18+E17+E16+E15+E14,))))","v":0},{"$f":"IF(G21=\"layer 6\",E22,IF(G21=\"layer 7\",E22+E23+E24,IF(G21=\"layer 11\",E22+E23+E24+E25+E26+E27+E30+E31+E32,IF(G21=\"layer 12\",E22+E23+E24+E25+E26+E27+E28+E29+E30+E31+E32+E33+E34,IF(G21=\"layer 13\",E22+E23+E24+E25+E26+E27+E28+E29+E30+E31+E32+E33+E34+E35+E36,IF(G21=\"layer 14\",E22+E23+E24+E25+E26+E27+E28+E29+E30+E31+E32+E33+E34+E35+E36+E37+E38,))))))","v":0},{"$f":"IF(K21<J21,J21,K21)","v":0},{"$f":"IF(C21=\"plane\",O2,IF(F21=\"\",(60/SQRT(N21))*LN((5.98*K21)/(0.8*S21+E21)),IF(F21=\"Layer 1\",(80/SQRT(C42))*LN((1.9*(2*H21+E21))/(0.8*S21+E21))*(1-(H21/(4*L21))),IF(F21=\"Layer 2\",(80/SQRT(C42))*LN((1.9*(2*H21+E21))/(0.8*S21+E21))*(1-(H21/(4*L21))),IF(F21=\"Layer 3\",(80/SQRT(C42))*LN((1.9*(2*H21+E21))/(0.8*S21+E21))*(1-(H21/(4*L21))),IF(F21=\"Layer 4\",(80/SQRT(C42))*LN((1.9*(2*H21+E21))/(0.8*S21+E21))*(1-(H21/(4*L21))),))))))","v":"PLANE"},{"$f":"C42*(1-(EXP((-1.55*I21)/K21)))","v":{"$error":"#DIV/0!"}},null,null,null,null,5]
[null,null,null,null,5]
[null,"Layer 6","TRACK",null,1,"Layer 5","Layer 10",{"$f":"IF(K23>J23,J23,K23)","v":5},{"$f":"K23+E23+E22+E21+E20+E19+E18+E17+E16+E15+E14+E13","v":50},{"$f":"IF(F23=\"layer 5\",E22,IF(F23=\"layer 4\",E22+E21+E20,IF(F23=\"layer 3\",E22+E21+E20+E19+E18,IF(F23=\"layer 2\",E22+E21+E20+E19+E18+E17+E16,IF(F23=\"layer 1\",E22+E21+E20+E19+E18+E17+E16+E15+E14,)))))","v":5},{"$f":"IF(G23=\"layer 7\",E24,IF(G23=\"layer 10\",E24+E25+E26+E27+E28+E29+E30,IF(G23=\"layer11\",E24+E25+E26+E27+E28+E29+E32,IF(G23=\"layer 12\",E24+E25+E26+E27+E28+E29+E32+E33+E34,IF(G23=\"layer 13\",E24+E25+E26+E27+E28+E29+E32+E33+E34+E35+E36,IF(G23=\"layer 14\",E24+E25+E26+E27+E28+E29+E30+E31+E32+E33+E34+E35+E36+E37+E38,))))))","v":19},{"$f":"IF(K23<J23,J23,K23)","v":19},{"$f":"IF(C23=\"plane\",O2,IF(F23=\"\",(60/SQRT(N23))*LN((5.98*K23)/(0.8*S23+E23)),IF(F23=\"Layer 1\",(80/SQRT(C42))*LN((1.9*(2*H23+E23))/(0.8*S23+E23))*(1-(H23/(4*L23))),IF(F23=\"Layer 2\",(80/SQRT(C42))*LN((1.9*(2*H23+E23))/(0.8*S23+E23))*(1-(H23/(4*L23))),IF(F23=\"Layer 3\",(80/SQRT(C42))*LN((1.9*(2*H23+E23))/(0.8*S23+E23))*(1-(H23/(4*L23))),IF(F23=\"Layer 4\",(80/SQRT(C42))*LN((1.9*(2*H23+E23))/(0.8*S23+E23))*(1-(H23/(4*L23))),IF(F23=\"Layer 5\",(80/SQRT(C42))*LN((1.9*(2*J23+E23))/(0.8*S23+E23))*(1-(H23/(4*L23))),)))))))","v":52.160368599068917},{"$f":"C42*(1-(EXP((-1.55*I23)/K23)))","v":4.1289138561078413},null,null,null,null,5]
[null,null,null,null,5]
[null,"Layer 7","TRACK",null,1,"Layer 5","Layer 10",{"$f":"IF(K25>J25,J25,K25)","v":11},null,{"$f":"IF(F25=\"layer 6\",E24,IF(F23=\"layer 5\",E24+E23+E22,IF(F25=\"layer 4\",E24+E23+E22,IF(F25=\"layer 3\",E24+E23+E22+E21+E20,IF(F25=\"layer 2\",E24+E23+E22+E21+E20+E19+E18,IF(F25=\"layer 1\",E24+E23+E22+E21+E20+E19+E18+E17+E16,))))))","v":11},{"$f":"IF(G25=\"layer 9\",E26+E27+E28,IF(G25=\"layer 10\",E26+E27+E28+E29+E30,IF(G25=\"layer 11\",E26+E27+E28+E29+E30+E31+E32,IF(G25=\"layer 12\",E26+E27+E28+E29+E30+E31+E32+E33+E34,IF(G25=\"layer 13\",E26+E27+E28+E29+E30+E31+E32+E33+E34+E35+E36,IF(G25=\"layer 14\",E26+E27+E28+E29+E30+E31+E32+E33+E34+E35+E36+E37+E38,))))))","v":13},{"$f":"IF(K25<J25,J25,K25)","v":13},{"$f":"IF(C25=\"plane\",O2,(80/SQRT(C42))*LN((1.9*(2*H25+E25))/(0.8*S25+E25))*(1-(H25/(4*L25))))","v":66.724778616873394},null,null,null,null,null,5]
[null,null,"Middle",null,1]
[null,"Layer 8",{"$f":"C25","v":"TRACK"},null,{"$f":"E25","v":1},null,null,null,null,null,null,null,{"$f":"M25","v":66.724778616873394},null,null,null,null,null,5]
[null,null,null,null,{"$f":"E24","v":5}]
[null,"Layer 9",{"$f":"C23","v":"TRACK"},null,{"$f":"E23","v":1},null,null,null,null,null,null,null,{"$f":"M23","v":52.160368599068917},null,null,null,null,null,{"$f":"S23","v":5}]
[null,null,null,null,{"$f":"E22","v":5}]
[null,"Layer 10",{"$f":"C21","v":"PLANE"},null,{"$f":"E21","v":1},null,null,null,null,null,null,null,{"$f":"M21","v":"PLANE"},null,null,null,null,null,{"$f":"S21","v":5}]
[null,null,null,null,{"$f":"E20","v":5},null,null,null,null,null,null,null,null,null,null,null,null,null,null,null,null,null," PCB SIZE REQUIRED"]
[null,"Layer 11",{"$f":"C19","v":"TRACK"},null,{"$f":"E19","v":1},null,null,null,null,null,null,null,{"$f":"M19","v":41.875225495027159},null,null,null,null,null,{"$f":"S19","v":5},null,null,null,"PCB",1.6]
[null,null,null,null,{"$f":"E18","v":5},null,null,null,null,null,null,null,null,null,null,null,null,null,null,null,null,null,"TOLERENCE",5]
[null,"Layer 12",{"$f":"C17","v":"PLANE"},null,{"$f":"E17","v":1},null,null,null,null,null,null,null,{"$f":"M17","v":"PLANE"},null,null,null,null,null,{"$f":"S17","v":5},null,null,null,"    TOTAL"]
[null,null,null,null,{"$f":"E16","v":5},null,null,null,null,null,null,null,null,null,null,null,null,null,null,null,null,null,"MAX.",{"$f":"X33/100*X34+X33","v":1.6800000000000002}]
[null,"Layer 13",{"$f":"C15","v":"TRACK"},null,{"$f":"E15","v":1},null,null,null,null,null,null,null,{"$f":"M15","v":53.005802404025488},null,null,null,null,null,{"$f":"S15","v":5},null,null,null,"MIN.",{"$f":"X33-(X33/100*X34)","v":1.52}]
[null,null,null,null,{"$f":"E14","v":5}]
[null,"Layer 14",{"$f":"C13","v":"TRACK"},null,{"$f":"E13","v":1},null,null,null,null,null,null,null,{"$f":"M13","v":94.649548503961327},null,null,null,null,null,{"$f":"S13","v":5}]
[]
[null,null,null,null,null,null,null,null,null,null,null,null,null,null,null,null,null,null,null,null,null,null,"    TOTAL"]
[null,"ER=",4.2,null,null,null,null,null,null,null,null,null,null,null,null,null,null,null,null,null,null,null,{"$f":"E13+E14+E16+E15+E17+E18+E19+E20+E21+E22+E23+E24+E25+E26+E27+E28+E29+E30+E31+E32+E33+E34+E35+E36+E37+E38+E39","v":75}]

{"sheet":"Trace-calc ","index":18,"n_rows":19,"n_cols":25,"rows_kept":19,"cut":false,"hidden":false,"merged":[[9,15,10,19],[3,15,5,19],[14,18,14,19],[16,15,16,17],[18,18,18,19],[3,4,3,7],[8,12,8,13],[18,15,18,17],[14,15,14,17],[6,15,8,19],[11,15,11,19]]}
[1]
[]
[]
[null,null,null,null,"W",null,null,null,null,null,null,null,null,null,null,"TRACE - CURRENT"]
[null,null,null,null,null,75,"Thou"]
[null,null,null,null,null,null,null,null,null,null,null,null,null,null,null,null,null,null,null,null,null,null,"Oz",{"$f":"IF(G5=\"Thou\",F5,IF(G5=\"micron\",F5/25.4,IF(G5=\"mm\",F5/25.4*1000,)))","v":75},{"$f":"IF(N10=\"Oz\",M10*1.44,IF(N10=\"Thou\",M10,IF(N10=\"micron\",M10/25.4,IF(N10=\"mm\",M10/25.4*1000,))))","v":2.88}]
[null,null,null,null,null,null,null,null,null,null,null,null,null,null,null," CALCULATOR",null,null,null,null,null,null,"Thou"]
[null,null,null,null,null,null,null,null,null,null,null,null,null,null,null,null,null,null,null,null,null,null,"Micron",null,{"$f":"X6*Y6","v":216}]
[null,null,null,null,null,null,null,null,null,null,null,null,"T",null,null,null,null,null,null,null,null,null,"mm"]
[null,null,null,null,null,null,null,null,null,null,null,null,2,"Oz",null,"Designed by ",null,null,null,null,null,null,"Inner",{"$f":"IF(S15=\"inner\",0.024,0.048)","v":4.8000000000000001E-2}]
[null,null,null,null,null,null,null,null,null,null,null,null,null,null,null,null,null,null,null,null,null,null,"Outer"]
[null,null,null,null,null,null,null,null,null,null,null,null,null,null,null,"PHILLIP RESTALL"]
[]
[]
[null,null,null,null,null,null,null,null,null,null,null,null,null,null,null,"Inner Or Outer Tracking Layer ",null,null,"Outer"]
[]
[null,null,null,null,null,null,null,null,null,null,null,null,null,null,null,"Maximum temperature rise above ambient ",null,null,10," °C"]
[null,null,null,null,null,null,null,null,null,null,null,null,null,null,null,"Result"]
[null,null,null,null,null,null,null,null,null,null,null,null,null,null,null,"        Maximum current in Amps =",null,null,{"$f":"X10*POWER(S17,0.44)*POWER(Y8,0.725)","v":6.5120871944007641}]

{"sheet":"Via-calc","index":19,"n_rows":26,"n_cols":22,"rows_kept":26,"cut":false,"hidden":false,"merged":[[5,19,5,23],[9,12,10,14],[18,1,18,16],[7,12,7,14],[13,12,13,14],[22,1,22,13],[23,1,23,12],[20,1,20,16],[19,1,19,16],[1,12,2,16],[3,12,3,16],[4,12,4,16],[5,12,5,16],[25,1,25,12],[21,1,21,12],[21,14,21,16],[14,12,14,14],[9,15,10,16],[13,15,13,16],[24,14,24,15],[25,14,25,15],[24,1,24,13],[14,15,14,16]]}
[1]
[null,null,null,null,null,null,null,null,null,null,null,null,"TRACE - CURRENT",null,null,null,null,null,null,"Oz",{"$f":"IF(D11=\"Oz\",C11*1.44,IF(D11=\"Thou\",C11,IF(D11=\"micron\",C11/25.4,IF(D11=\"mm\",C11/25.4*1000,))))","v":2.88},{"$f":"3.14*G13","v":119.32000000000001}]
[null,null,null,null,null,null,null,null,null,null,null,null,null,null,null,null,null,null,null,"Thou",{"$f":"IF(H13=\"Thou\",V2,IF(H13=\"micron\",V2/25.4,IF(H13=\"mm\",V2/25.4*1000,)))","v":119.32000000000001},{"$f":"1000*G13*(1/25.4)","v":1496.0629921259842}]
[null,null,null,null,null,null,null,null,null,null,null,null," CALCULATOR",null,null,null,null,null,null,"Micron",{"$f":"P14/P10","v":3.9480678471240522},{"$f":"U2*U3","v":343.64159999999998}]
[null,null,null,null,null,null,null,null,null,null,null,null,"Designed by ",null,null,null,null,null,null,"mm"]
[null,null,null,null,null,null,null,null,null,null,null,null,"PHILLIP RESTALL"]
[]
[null,null,null,null,null,null,null,null,null,null,null,null,"Maximum temperature rise above ambient ",null,null,10," °C"]
[null,null,null,null,null,null,null,null,null,null,null,null,"Result"]
[null,null,null,null,null,null,null,null,null,null,null,null,"        Maximum current in Amps =",null,null,{"$f":"0.02*POWER(P8,0.44)*POWER(V4,0.725)","v":3.7993268051172588}]
[null,null,2,"Oz"]
[]
[null,null,null,null,null,null,38,"Thou",null,null,null,null,"Minimum Via count Calculator"]
[null,null,null,null,null,null,null,null,null,null,null,null,"Required current in Amps for single Net  ",null,null,15]
[null,null,null,null,null,null,null,null,null,null,null,null,"Minimum Number Of Vias Needed =",null,null,{"$f":"ROUNDUP(U4,0)","v":4}]
[]
[]
[null,"Please Note"]
[null,"I have created the Via Calculator on information I found from various sources."]
[null,"The via calculator simply converts the drill size into its  Circumference And assumes this behaves the same as a trace"]
[null,"Due to a lack of Data I cannot confirm the accuracy of this calculator (use as rough guide only)."]
[null,"This means it is down to the User to determine its accuracy."]
[]
[null,"Selectable Units on Copper Height and Drill Size"]
[null,"Minimum Number of vias Needed now always rounds up",null,null,null,null,null,null,null,null,null,null,null,null,"Designed"]
[null,"This Program was designed by Phillip Restall    ",null,null,null,null,null,null,null,null,null,null,null,null,"By"]

{"sheet":"Thermals","index":20,"n_rows":29,"n_cols":31,"rows_kept":29,"cut":false,"hidden":false,"merged":[[20,18,20,20],[26,18,26,20],[1,5,1,11],[1,12,1,18],[2,18,5,22],[6,18,7,22],[11,18,11,22],[20,21,20,22],[9,18,9,22],[12,18,12,22],[17,18,17,20],[15,18,15,20],[13,1,13,2],[7,1,7,5],[10,18,10,22],[28,18,28,20],[28,21,28,22],[25,1,26,6],[27,3,27,5],[15,21,15,22],[13,18,13,22]]}
[1]
[]
[null,null,null,null,null,null,null,null,null,null,null,30,null,{"$f":"C9","v":"Thou"},null,null,null,null,"THERMAL - CURRENT"]
[]
[]
[]
[null,null,null,null,null,null,null,null,null,null,null,null,null,null,null,null,null,null," CALCULATOR"]
[null,"Select Units",null,null,null,null,null,null,null,null,null,null,null,null,null,null,null,null,null,null,null,null,null,null,null,null,null,null,null,"Outer"]
[null,null,"Thou",null,null,null,null,null,null,null,null,null,null,null,null,null,null,null,null,null,null,null,null,null,null,null,null,null,null,"Inner"]
[]
[]
[]
[null,null,null,null,null,null,null,null,null,null,null,null,null,null,null,null,null,null,"Designed by",null,null,null,null,null,null,null,null,null,null,{"$f":"IF(V16=\"inner\",0.024,0.048)","v":4.8000000000000001E-2}]
[null,null,null,null,null,null,null,null,null,null,null,null,null,null,null,null,null,null,"PHILLIP RESTALL"]
[null,20,{"$f":"C9","v":"Thou"},null,null,null,null,null,null,null,null,null,null,null,null,null,null,null,null,null,null,null,null,null,null,null,null,null,null,{"$f":"IF(C9=\"Thou\",L3,IF(C9=\"micron\",L3/25.4,IF(C9=\"mm\",L3/25.4*1000,)))","v":30},{"$f":"AD15*V21","v":90}]
[null,null,null,null,null,null,null,null,null,null,null,null,null,null,null,null,null,null,"Inner Or Outer  Layer ",null,null,"Outer",null,null,null,null,null,null,null,{"$f":"IF(C9=\"Thou\",B15,IF(C9=\"micron\",B15/25.4,IF(C9=\"mm\",B15/25.4*1000,)))","v":20}]
[null,null,null,null,null,null,null,null,null,null,null,null,null,null,null,null,null,null,null,null,null,null,null,null,null,null,null,null,null,{"$f":"IF(C9=\"Thou\",L27,IF(C9=\"micron\",L27/25.4,IF(C9=\"mm\",L27/25.4*1000,)))","v":40},{"$f":"(AD16*2)+(AD17*2)","v":120}]
[null,null,null,null,null,null,null,null,null,null,null,null,null,null,null,null,null,null,"Maximum temperature rise above ambient ",null,null,10," °C",null,null,null,null,null,null,{"$f":"IF(D28=\"Oz\",C28*1.44,IF(D28=\"Thou\",C28,IF(D28=\"micron\",C28/25.4,IF(D28=\"mm\",C28/25.4*1000,))))","v":2.88},{"$f":"AD18*AD15","v":86.399999999999991}]
[]
[null,null,null,null,null,null,null,null,null,null,null,null,null,null,null,null,null,null,null,null,null,null,null,null,null,null,null,null,null,"mm"]
[null,null,null,null,null,null,null,null,null,null,null,null,null,null,null,null,null,null,"Number of Thermals used",null,null,3,null,null,null,null,null,null,null,"Thou"]
[null,null,null,null,null,null,null,null,null,null,null,null,null,null,null,null,null,null,null,null,null,null,null,null,null,null,null,null,null,"Micron"]
[null,null,null,null,null,null,null,null,null,null,null,null,null,null,null,null,null,null,null,null,null,null,null,null,null,null,null,null,null,"Oz"]
[]
[]
[null,"Copper Thickness"]
[null,null,null,null,null,null,null,null,null,null,null,40,null,{"$f":"C9","v":"Thou"},null,null,null,null,"Thermal Width To Pad Circumference Ratio =",null,null,{"$f":"AE15*100/AE17","v":75},"%"]
[null,null,2,"Oz"]
[null,null,null,null,null,null,null,null,null,null,null,null,null,null,null,null,null,null,"        Maximum current in Amps =",null,null,{"$f":"AD13*POWER(V18,0.44)*POWER(AE18,0.725)*V21","v":10.053909124346847}]

{"sheet":"RESISTOR","index":21,"n_rows":29,"n_cols":74,"rows_kept":29,"cut":false,"hidden":false,"merged":[[20,9,20,15],[28,1,29,6],[28,7,29,8],[26,10,26,13],[27,10,28,13],[5,4,5,5],[8,10,8,14],[22,10,23,14],[13,10,13,12],[15,10,15,12],[21,10,21,14],[19,10,19,12],[15,4,15,5],[17,10,17,12],[5,10,5,14],[6,10,6,14],[10,4,10,5],[7,10,7,14],[11,10,11,12],[11,13,11,14]]}
[1]
[]
[]
[]
[]
[null,null,null,null,"Partial Square",null,null,null,null,null,"BURIED RESISTOR "]
[null,null,null,null,null,null,null,null,null,null," CALCULATOR"]
[null,null,null,null,null,null,null,null,null,null,"Designed by "]
[null,null,null,null,null,null,null,null,null,null,"PHILLIP RESTALL"]
[]
[null,null,null,null,"Bar type"]
[null,null,null,null,null,null,null,null,null,null,"UNIT Type",null,null,"Thou"]
[null,null,null,null,null,null,null,null,null,null,null,null,null,null,null,null,null,null,null,null,null,null,null,null,null,null,null,null,null,null,null,null,null,null,null,null,null,null,null,null,null,null,null,null,null,null,null,null,null,null,null,null,null,null,null,null,null,null,null,null,null,null,null,null,null,null,"Ps","AP","N","WT","LT","WP","LP","TT"]
[null,null,null,null,null,null,null,null,null,null,"Target Resistance Value",null,null,100,"Ohm",null,null,null,null,null,null,null,null,null,null,null,null,null,null,null,null,null,null,null,null,null,null,null,null,null,null,null,null,null,null,null,null,null,null,null,null,null,null,null,null,null,null,null,null,null,null,null,null,null,null,null,"Power","Area","Number of","Minimum","Minimum","Design","Design","Total"]
[null,null,null,null,null,null,null,null,null,null,null,null,null,null,null,null,null,null,null,null,null,null,null,null,null,null,null,null,null,null,null,null,null,null,null,null,null,null,null,null,null,null,null,null,null,null,null,null,null,null,null,null,null,null,null,null,null,null,null,null,null,null,null,null,null,null,"Rating",null,"Square","Width","Length","Width","Length","Tolerance"]
[null,null,null,null,"Serpentine",null,null,null,null,null,"Sheet Resistivities",null,null,25,"Ohm/Sq.",null,null,null,null,null,null,null,null,null,null,null,null,null,null,null,null,null,null,null,null,null,null,null,null,null,null,null,null,null,null,null,null,null,null,null,null,null,null,null,null,null,null,null,null,null,null,null,null,null,null,null,"mW/mil2","mil2",null,"mil","mil","mil","mil","%"]
[null,null,null,null,null,null,null,null,null,null,null,null,null,null,null,null,null,null,null,null,null,null,null,null,null,null,null,null,null,null,null,null,null,null,null,null,null,null,null,null,null,null,null,null,null,null,null,null,null,null,null,null,null,null,null,null,null,null,null,null,null,null,null,null,null,null,{"$f":"IF(N16=25,61.2*POWER(BR17*BR17*BQ17,-0.87),IF(N16=50,54.5*POWER(BR17*BR17*BQ17,-0.87),IF(N16=100,45.9*POWER(BR17*BR17*BQ17,-0.87))))","v":7.5780833928449677E-3},{"$f":"N18/BO17","v":659.79743700377753},{"$f":"N14/N16","v":4},{"$f":"ROUND(((0.7/(N20-5))* ((BQ17+1)/BQ17))*100,0)","v":-88},{"$f":"BR17*BQ17","v":-352},{"$f":"ROUND(SQRT(BP17/BQ17),0)","v":13},{"$f":"(BT17*BQ17)","v":52},{"$f":"(((0.7/(BT17))* ((BQ17+0.7)/BQ17))*100)+5","v":11.326923076923077}]
[null,null,null,null,null,null,null,null,null,null,"Power Rating",null,null,5,"mW"]
[null,null,null,null,null,null,null,null,null,null,null,null,null,null,null,null,null,null,null,null,null,null,null,null,null,null,null,null,null,null,null,null,null,null,null,null,null,null,null,null,null,null,null,null,null,null,null,null,null,null,null,null,null,null,null,null,null,null,null,null,null,null,null,null,"W1","   L2"]
[null,null,null,null,null,null,null,null,null,null,"Maximum Tolerance",null,null,4,"%",null,null,null,null,null,null,null,null,null,null,null,null,null,null,null,null,null,null,null,null,null,null,null,null,null,null,null,null,null,null,null,null,null,null,null,null,null,null,null,null,null,null,null,null,null,null,null,null,null,"(Mil)","   (Mil)"]
[null,null,null,null,null,null,null,null,null,"Due to limitations in the equation 5% cannot be calculated",null,null,null,null,null,null,null,null,null,null,null,null,null,null,null,null,null,null,null,null,null,null,null,null,null,null,null,null,null,null,null,null,null,null,null,null,null,null,null,null,null,null,null,null,null,null,null,null,null,null,null,null,null,null,{"$f":"IF(BR17>=BT17,BR17,BT17)","v":13},{"$f":"IF(BR17>=BT17,BM21*BQ17,BM21*BQ17)","v":52},{"$f":"IF(DU13>=DW13,\"t*\",\"P*\")","v":"t*"}]
[null,null,null,null,null,null,null,null,null,null,"CLICK TEXT BELOW TO CONTINUE"]
[null,null,null,null,null,null,null,null,null,null,{"$f":"IF(BQ17<1,HYPERLINK(\"[PCBTOOLSETV2_3.xls]PARTIAL!a1\",BN28),IF(BQ17=1,HYPERLINK(\"[PCBTOOLSETV2_3.xls]BARsingle!a1\",BN28),IF(BQ17<=10,HYPERLINK(\"[PCBTOOLSETV2_3.xls]bar!a1\",BN28),IF(BQ17>10,HYPERLINK(\"[PCBTOOLSETV2_3.xls]SERPENTINE!a1\",BN28)))))","v":"Bar Type"},null,null,null,null,null,null,null,null,null,null,null,null,null,null,null,null,null,null,null,null,null,null,null,null,null,null,null,null,null,null,null,null,null,null,null,null,null,null,null,null,null,null,null,null,null,null,null,null,null,null,null,null,null,"NOTE:  WT & LT are derive from the tolerance, and WP & LP are derive form the power dissipation of the "]
[null,null,null,null,null,null,null,null,null,null,null,null,null,null,null,null,null,null,null,null,null,null,null,null,null,null,null,null,null,null,null,null,null,null,null,null,null,null,null,null,null,null,null,null,null,null,null,null,null,null,null,null,null,null,null,null,null,null,null,null,null,null,null,null,null,25,"mm"]
[null,null,null,null,null,null,null,null,null,null,null,null,null,null,null,null,null,null,null,null,null,null,null,null,null,null,null,null,null,null,null,null,null,null,null,null,null,null,null,null,null,null,null,null,null,null,null,null,null,null,null,null,null,null,null,null,null,null,null,null,null,null,null,null,null,50,"Thou"]
[null,null,null,null,null,null,null,null,null,null,null,null,null,null,null,null,null,null,null,null,null,null,null,null,null,null,null,null,null,null,null,null,null,null,null,null,null,null,null,null,null,null,null,null,null,null,null,null,null,null,null,null,null,null,null,null,null,null,null,null,null,null,null,null,null,100]
[null,null,null,null,null,null,null,null,null,null,"CLICK TEXT BELOW FOR CUSTOM"]
[null,null,null,null,null,null,null,null,null,null,"CUSTOM",null,null,null,null,null,null,null,null,null,null,null,null,null,null,null,null,null,null,null,null,null,null,null,null,null,null,null,null,null,null,null,null,null,null,null,null,null,null,null,null,null,null,null,null,null,null,null,null,null,null,null,null,null,null,{"$f":"IF(BQ17<1,\"Partial Square\",IF(BQ17<=10,\"Bar Type\",IF(BQ17>10,\"Serpentine\")))","v":"Bar Type"}]
[null,"For more Information about Buried Resistors click Here >>>",null,null,null,null,null,"Ohmega"]

{"sheet":"PARTIAL","index":22,"n_rows":20,"n_cols":21,"rows_kept":20,"cut":false,"hidden":false,"merged":[[11,19,11,20],[4,7,4,8],[10,18,10,19],[5,6,5,7],[5,8,5,9],[1,6,1,20],[11,17,11,18],[19,9,19,23],[15,9,15,23],[16,12,16,17],[16,9,16,11],[16,18,16,23],[17,9,17,10],[17,13,17,16],[17,18,17,19]]}
[1]
[null,null,null,null,null,null,"PARTIAL"]
[]
[]
[null,null,null,null,null,null,null,"L"]
[null,null,null,null,null,null,{"$f":"IF(RESISTOR!N12=\"Thou\",RESISTOR!BN21,IF(RESISTOR!N12=\"mm\",RESISTOR!BN21*25.4/1000))","v":52},null,{"$f":"RESISTOR!N12","v":"Thou"}]
[]
[]
[]
[]
[null,null,null,null,null,null,null,null,null,null,null,null,null,null,null,null,null,null,"W"]
[null,null,null,null,null,null,null,null,null,null,null,null,null,null,null,null,null,{"$f":"IF(RESISTOR!N12=\"Thou\",RESISTOR!BM21,IF(RESISTOR!N12=\"mm\",RESISTOR!BM21*25.4/1000))","v":13},null,{"$f":"RESISTOR!N12","v":"Thou"}]
[]
[]
[]
[null,null,null,null,null,null,null,null,null,"Dimensions Shown Create"]
[null,null,null,null,null,null,null,null,null,{"$f":"RESISTOR!N14","v":100},null,null,"Ohm",null,null,null,null,null,"Resistor"]
[null,null,null,null,null,null,null,null,null,{"$f":"RESISTOR!N18","v":5},null,"mW",null,{"$f":"RESISTOR!N20","v":4},null,null,null,"%",{"$f":"RESISTOR!N16","v":25},null,"Ohm/Sq."]
[]
[null,null,null,null,null,null,null,null,null,"BACK TO START"]

{"sheet":"Barsingle","index":23,"n_rows":20,"n_cols":21,"rows_kept":20,"cut":false,"hidden":false,"merged":[[11,18,11,19],[11,20,11,21],[4,7,4,8],[10,19,10,20],[5,8,5,9],[5,6,5,7],[1,6,1,20],[19,8,19,22],[17,8,17,9],[17,17,17,18],[17,14,17,16],[17,12,17,13],[15,8,15,22],[16,8,16,10],[16,11,16,16],[16,17,16,22]]}
[1]
[null,null,null,null,null,null,"BAR TYPE"]
[]
[]
[null,null,null,null,null,null,null,"L"]
[null,null,null,null,null,null,{"$f":"IF(RESISTOR!N12=\"Thou\",RESISTOR!BN21,IF(RESISTOR!N12=\"mm\",RESISTOR!BN21*25.4/1000))","v":52},null,{"$f":"RESISTOR!N12","v":"Thou"}]
[]
[]
[]
[]
[null,null,null,null,null,null,null,null,null,null,null,null,null,null,null,null,null,null,null,"W"]
[null,null,null,null,null,null,null,null,null,null,null,null,null,null,null,null,null,null,{"$f":"IF(RESISTOR!N12=\"Thou\",RESISTOR!BM21,IF(RESISTOR!N12=\"mm\",RESISTOR!BM21*25.4/1000))","v":13},null,{"$f":"RESISTOR!N12","v":"Thou"}]
[]
[]
[]
[null,null,null,null,null,null,null,null,"Dimensions Shown Create"]
[null,null,null,null,null,null,null,null,{"$f":"RESISTOR!N14","v":100},null,null,"Ohm",null,null,null,null,null,"Resistor"]
[null,null,null,null,null,null,null,null,{"$f":"RESISTOR!N18","v":5},null,"mW",null,{"$f":"RESISTOR!N20","v":4},null,"%",null,null,{"$f":"RESISTOR!N16","v":25},null,"Ohm/Sq."]
[]
[null,null,null,null,null,null,null,null,"BACK TO START"]

{"sheet":"BAR","index":24,"n_rows":20,"n_cols":25,"rows_kept":20,"cut":false,"hidden":false,"merged":[[4,9,4,10],[11,22,11,23],[11,24,11,25],[10,23,10,24],[5,8,5,9],[1,7,1,21],[19,8,19,22],[17,17,17,22],[17,8,17,9],[17,12,17,13],[17,15,17,16],[15,8,15,22],[16,8,16,10],[16,11,16,13],[16,14,16,22]]}
[1]
[null,null,null,null,null,null,null,"BAR TYPE"]
[]
[]
[null,null,null,null,null,null,null,null,null,"L"]
[null,null,null,null,null,null,null,null,{"$f":"IF(RESISTOR!N12=\"Thou\",RESISTOR!BN21,IF(RESISTOR!N12=\"mm\",RESISTOR!BN21*25.4/1000))","v":52},null,{"$f":"RESISTOR!N12","v":"Thou"}]
[]
[]
[]
[]
[null,null,null,null,null,null,null,null,null,null,null,null,null,null,null,null,null,null,null,null,null,null,null,"W"]
[null,null,null,null,null,null,null,null,null,null,null,null,null,null,null,null,null,null,null,null,null,null,{"$f":"IF(RESISTOR!N12=\"Thou\",RESISTOR!BM21,IF(RESISTOR!N12=\"mm\",RESISTOR!BM21*25.4/1000))","v":13},null,{"$f":"RESISTOR!N12","v":"Thou"}]
[]
[]
[]
[null,null,null,null,null,null,null,null,"Dimensions Shown Create"]
[null,null,null,null,null,null,null,null,{"$f":"RESISTOR!N14","v":100},null,null,"Ohm",null,null,"Resistor"]
[null,null,null,null,null,null,null,null,{"$f":"RESISTOR!N18","v":5},null,"mW",null,{"$f":"RESISTOR!N20","v":4},null,"%",{"$f":"RESISTOR!N16","v":25},null,"Ohm/Sq."]
[]
[null,null,null,null,null,null,null,null,"BACK TO START"]

{"sheet":"SERPENTINE","index":25,"n_rows":3,"n_cols":10,"rows_kept":3,"cut":false,"hidden":false,"merged":[[2,9,3,19]]}
[1]
[]
[null,null,null,null,null,null,null,null,null,"CHOOSE TYPE"]

{"sheet":"SERPENTINE1","index":26,"n_rows":39,"n_cols":67,"rows_kept":39,"cut":false,"hidden":false,"merged":[[16,42,16,43],[36,66,36,73],[30,22,31,26],[24,62,25,62],[24,66,25,70],[32,22,35,24],[32,28,35,30],[30,7,30,8],[13,66,14,66],[20,1,20,2],[20,3,20,5],[27,9,27,13],[20,62,21,62],[20,66,21,69],[27,14,27,16],[16,44,16,46],[13,62,14,62],[37,17,37,19],[1,8,1,12],[32,33,35,35],[32,31,35,32],[27,22,28,41],[30,27,31,30],[30,31,31,41],[32,25,35,27],[4,26,4,27],[4,28,4,31],[1,14,2,31],[37,22,38,41],[11,5,11,8],[11,9,11,13],[32,36,35,41],[35,16,35,17],[35,6,38,9],[31,6,31,9],[31,10,31,14],[37,14,37,16]]}
[1]
[null,null,null,null,null,null,null,null,null,null,null,null,null,null,"SERPENTINE"]
[]
[]
[null,"Type 1",null,null,null,null,null,null,null,null,null,null,null,null,null,null,null,null,null,null,null,null,null,null,null,null,3,null,{"$f":"IF(AA5=1,\"Column\",\"Columns\")","v":"Columns"}]
[]
[]
[]
[]
[null,null,null,null,null,null,null,null,null,null,null,null,null,null,null,null,null,null,null,null,null,null,null,null,null,null,null,null,null,null,null,null,null,null,null,null,null,null,null,null,null,null,null,null,null,null,null,null,null,null,null,null,null,null,null,null,null,null,null,null,null,null,4,null,null,null,"corners"]
[]
[null,null,null,null,null,{"$f":"G32*2","v":26},null,null,null,{"$f":"RESISTOR!N12","v":"Thou"},null,null,null,null,null,null,null,null,null,null,null,null,null,null,null,null,null,null,null,null,null,null,null,null,null,null,null,null,null,null,null,null,null,null,null,null,null,null,null,null,null,null,null,null,null,null,null,null,null,null,null,null,{"$f":"AA5*2","v":6},null,null,null,"Corners2"]
[]
[null,null,null,null,null,null,null,null,null,null,null,null,null,null,null,null,null,null,null,null,null,null,null,null,null,null,null,null,null,null,null,null,null,null,null,null,null,null,null,null,null,null,null,null,null,null,null,null,null,null,null,null,null,null,null,null,null,null,null,null,null,null,{"$f":"RESISTOR!N14","v":100},null,null,null,"Ohms required"]
[]
[]
[null,null,null,null,null,null,null,null,null,null,null,null,null,null,null,null,null,null,null,null,null,null,null,null,null,null,null,null,null,null,null,null,null,null,null,null,null,null,null,null,null,null,{"$f":"BK39*O38","v":4.5824999999999942},null,{"$f":"RESISTOR!N12","v":"Thou"},null,null,null,null,null,null,null,null,null,null,null,null,null,null,null,null,null,{"$f":"RESISTOR!N16","v":25},null,null,null,"Sheet"]
[]
[null,null,null,null,null,null,null,null,null,null,null,null,null,null,null,null,null,null,null,null,null,null,null,null,null,null,null,null,null,null,null,null,null,null,null,null,null,null,null,null,null,null,null,null,null,null,null,null,null,null,null,null,null,null,null,null,null,null,null,null,null,null,{"$f":"BK10+BK12","v":10},null,null,null,"Total corners"]
[]
[null,{"$f":"(AQ17-G32)/2","v":-4.2087500000000029},null,{"$f":"RESISTOR!N12","v":"Thou"},null,null,null,null,null,null,null,null,null,null,null,null,null,null,null,null,null,null,null,null,null,null,null,null,null,null,null,null,null,null,null,null,null,null,null,null,null,null,null,null,null,null,null,null,null,null,null,null,null,null,null,null,null,null,null,null,null,null,{"$f":"(BK19*0.559)*BK17","v":139.75000000000003},null,null,null,"Corners in ohms"]
[]
[]
[]
[null,null,null,null,null,null,null,null,null,null,null,null,null,null,null,null,null,null,null,null,null,null,null,null,null,null,null,null,null,null,null,null,null,null,null,null,null,null,null,null,null,null,null,null,null,null,null,null,null,null,null,null,null,null,null,null,null,null,null,null,null,null,{"$f":"BK14-BK21","v":-39.750000000000028},null,null,null,"Remaining Ohms"]
[]
[]
[null,null,null,null,null,null,null,null,null,{"$f":"G32*3","v":39},null,null,null,null,{"$f":"RESISTOR!N12","v":"Thou"},null,null,null,null,null,null,null,"Dimensions Shown Create"]
[null,null,null,null,null,null,null,null,null,null,null,null,null,null,null,null,null,null,null,null,null,null,null,null,null,null,null,null,null,null,null,null,null,null,null,null,null,null,null,null,null,null,null,null,null,null,null,null,null,null,null,null,null,null,null,null,null,null,null,null,null,null,{"$f":"BK25/BK17","v":-1.5900000000000012},null,null,null,"No of full squares"]
[]
[null,null,null,null,null,null,null,null,null,null,null,null,null,null,null,null,null,null,null,null,null,null,{"$f":"RESISTOR!N14","v":100},null,null,null,null,"Ohm",null,null,null,"Resistor"]
[null,null,null,null,null,null,{"$f":"O38","v":13},null,null,null,{"$f":"RESISTOR!N12","v":"Thou"}]
[null,null,null,null,null,null,null,null,null,null,null,null,null,null,null,null,null,null,null,null,null,null,{"$f":"RESISTOR!N18","v":5},null,null,"mW",null,null,{"$f":"RESISTOR!N20","v":4},null,null,"%",null,{"$f":"RESISTOR!N16","v":25},null,null,"Ohm/Sq.",null,null,null,null,null,null,null,null,null,null,null,null,null,null,null,null,null,null,null,null,null,null,null,null,null,{"$f":"BK19+BK29","v":8.4099999999999984},null,null,null,"Total squares"]
[]
[null,null,null,null,null,null,null,null,null,null,null,null,null,null,null,null,null,null,null,null,null,null,null,null,null,null,null,null,null,null,null,null,null,null,null,null,null,null,null,null,null,null,null,null,null,null,null,null,null,null,null,null,null,null,null,null,null,null,null,null,null,null,{"$f":"BK33-4","v":4.4099999999999984},null,null,null,"standard square removed"]
[]
[null,null,null,null,null,null,null,null,null,null,null,null,null,null,null,null,null,null,null,null,null,null,null,null,null,null,null,null,null,null,null,null,null,null,null,null,null,null,null,null,null,null,null,null,null,null,null,null,null,null,null,null,null,null,null,null,null,null,null,null,null,null,{"$f":"BK35-AA5","v":1.4099999999999984},null,null,null,"column"]
[null,null,null,null,null,null,null,null,null,null,null,null,null,null,{"$f":"IF(RESISTOR!N12=\"Thou\",RESISTOR!BM21,IF(RESISTOR!N12=\"mm\",RESISTOR!BM21*25.4/1000))","v":13},null,null,{"$f":"RESISTOR!N12","v":"Thou"},null,null,null,null,"BACK TO START"]
[null,null,null,null,null,null,null,null,null,null,null,null,null,null,null,null,null,null,null,null,null,null,null,null,null,null,null,null,null,null,null,null,null,null,null,null,null,null,null,null,null,null,null,null,null,null,null,null,null,null,null,null,null,null,null,null,null,null,null,null,null,null,{"$f":"BK37/(AA5+1)","v":0.35249999999999959},null,null,null,"overall height"]

{"sheet":"SERPENTINE2","index":27,"n_rows":40,"n_cols":45,"rows_kept":40,"cut":false,"hidden":false,"merged":[[4,26,4,27],[16,44,16,46],[4,28,4,31],[13,62,14,62],[13,66,14,66],[16,42,16,43],[29,20,31,39],[37,66,37,73],[3,1,4,3],[1,14,2,31],[20,62,21,62],[20,66,21,69],[25,62,26,62],[25,66,26,70],[24,36,26,39],[24,40,26,42],[39,20,40,39],[32,20,33,24],[32,25,33,28],[32,29,33,39],[34,20,37,22],[34,29,37,30],[34,31,37,33],[34,34,37,39],[34,23,37,25],[34,26,37,28]]}
[1]
[null,null,null,null,null,null,null,null,null,null,null,null,null,null,"SERPENTINE"]
[]
[null,"Type 2"]
[null,null,null,null,null,null,null,null,null,null,null,null,null,null,null,null,null,null,null,null,null,null,null,null,null,null,3,null,{"$f":"IF(AA5=1,\"Column\",\"Columns\")","v":"Columns"}]
[]
[]
[]
[]
[]
[]
[]
[]
[]
[]
[]
[null,null,null,null,null,null,null,null,null,null,null,null,null,null,null,null,null,null,null,null,null,null,null,null,null,null,null,null,null,null,null,null,null,null,null,null,null,null,null,null,null,null,{"$f":"IF(RESISTOR!N12=\"Thou\",RESISTOR!BU17/SERPENTINE2!AA5,IF(RESISTOR!N12=\"mm\",RESISTOR!BU17/SERPENTINE2!AA5*25.4/1000))","v":17.333333333333332},null,{"$f":"RESISTOR!N12","v":"Thou"}]
[]
[]
[]
[]
[]
[]
[]
[null,null,null,null,null,null,null,null,null,null,null,null,null,null,null,null,null,null,null,null,null,null,null,null,null,null,null,null,null,null,null,null,null,null,null,null,{"$f":"IF(RESISTOR!N12=\"Thou\",RESISTOR!BM21,IF(RESISTOR!N12=\"mm\",RESISTOR!BM21*25.4/1000))","v":13},null,null,null,{"$f":"RESISTOR!N12","v":"Thou"}]
[]
[]
[]
[]
[null,null,null,null,null,null,null,null,null,null,null,null,null,null,null,null,null,null,null,null,"Dimensions Shown Create"]
[]
[]
[null,null,null,null,null,null,null,null,null,null,null,null,null,null,null,null,null,null,null,null,{"$f":"RESISTOR!N14","v":100},null,null,null,null,"Ohm",null,null,null,"Resistor"]
[]
[null,null,null,null,null,null,null,null,null,null,null,null,null,null,null,null,null,null,null,null,{"$f":"RESISTOR!N18","v":5},null,null,"mW",null,null,{"$f":"RESISTOR!N20","v":4},null,null,"%",null,{"$f":"RESISTOR!N16","v":25},null,null,"Ohm/Sq."]
[]
[]
[]
[]
[null,null,null,null,null,null,null,null,null,null,null,null,null,null,null,null,null,null,null,null,"BACK TO START"]

{"sheet":"Custom","index":28,"n_rows":48,"n_cols":84,"rows_kept":48,"cut":false,"hidden":false,"merged":[[11,34,11,36],[5,37,5,38],[15,34,16,36],[15,37,16,37],[15,38,16,38],[5,34,5,36],[7,34,7,36],[13,34,13,36],[1,8,2,25],[26,76,26,79],[25,76,25,79],[24,76,24,79],[9,34,9,36],[21,34,22,38]]}
[1]
[null,null,null,null,null,null,null,null,"CUSTOM"]
[]
[]
[]
[null,null,null,null,null,null,null,null,null,null,null,null,null,null,null,null,null,null,null,null,null,null,null,null,null,null,null,null,null,null,null,null,null,null,"UNIT Type",null,null,"mm",null,null,null,null,null,null,null,null,null,null,null,null,null,null,null,null,25,{"$f":"IF(D6=\"r\",1,IF(D6=\"l\",0.559,IF(D6=\"\",0)))","v":0},{"$f":"IF(E6=\"r\",1,IF(E6=\"l\",0.559,IF(E6=\"\",0)))","v":0},{"$f":"IF(F6=\"r\",1,IF(F6=\"l\",0.559,IF(F6=\"\",0)))","v":0},{"$f":"IF(G6=\"r\",1,IF(G6=\"l\",0.559,IF(G6=\"\",0)))","v":0},{"$f":"IF(H6=\"r\",1,IF(H6=\"l\",0.559,IF(H6=\"\",0)))","v":0},{"$f":"IF(I6=\"r\",1,IF(I6=\"l\",0.559,IF(I6=\"\",0)))","v":0},{"$f":"IF(J6=\"r\",1,IF(J6=\"l\",0.559,IF(J6=\"\",0)))","v":0},{"$f":"IF(K6=\"r\",1,IF(K6=\"l\",0.559,IF(K6=\"\",0)))","v":0},{"$f":"IF(L6=\"r\",1,IF(L6=\"l\",0.559,IF(L6=\"\",0)))","v":0},{"$f":"IF(M6=\"r\",1,IF(M6=\"l\",0.559,IF(M6=\"\",0)))","v":0},{"$f":"IF(N6=\"r\",1,IF(N6=\"l\",0.559,IF(N6=\"\",0)))","v":0},{"$f":"IF(O6=\"r\",1,IF(O6=\"l\",0.559,IF(O6=\"\",0)))","v":0},{"$f":"IF(P6=\"r\",1,IF(P6=\"l\",0.559,IF(P6=\"\",0)))","v":0},{"$f":"IF(Q6=\"r\",1,IF(Q6=\"l\",0.559,IF(Q6=\"\",0)))","v":0},{"$f":"IF(R6=\"r\",1,IF(R6=\"l\",0.559,IF(R6=\"\",0)))","v":0},{"$f":"IF(S6=\"r\",1,IF(S6=\"l\",0.559,IF(S6=\"\",0)))","v":0},{"$f":"IF(T6=\"r\",1,IF(T6=\"l\",0.559,IF(T6=\"\",0)))","v":0},{"$f":"IF(U6=\"r\",1,IF(U6=\"l\",0.559,IF(U6=\"\",0)))","v":0},{"$f":"IF(V6=\"r\",1,IF(V6=\"l\",0.559,IF(V6=\"\",0)))","v":0},{"$f":"IF(W6=\"r\",1,IF(W6=\"l\",0.559,IF(W6=\"\",0)))","v":0},{"$f":"IF(X6=\"r\",1,IF(X6=\"l\",0.559,IF(X6=\"\",0)))","v":0},{"$f":"IF(Y6=\"r\",1,IF(Y6=\"l\",0.559,IF(Y6=\"\",0)))","v":0},{"$f":"IF(Z6=\"r\",1,IF(Z6=\"l\",0.559,IF(Z6=\"\",0)))","v":0},{"$f":"IF(AA6=\"r\",1,IF(AA6=\"l\",0.559,IF(AA6=\"\",0)))","v":0},{"$f":"IF(AB6=\"r\",1,IF(AB6=\"l\",0.559,IF(AB6=\"\",0)))","v":0},{"$f":"IF(AC6=\"r\",1,IF(AC6=\"l\",0.559,IF(AC6=\"\",0)))","v":0},{"$f":"IF(AD6=\"r\",1,IF(AD6=\"l\",0.559,IF(AD6=\"\",0)))","v":0},{"$f":"IF(AE6=\"r\",1,IF(AE6=\"l\",0.559,IF(AE6=\"\",0)))","v":0},{"$f":"IF(AF6=\"r\",1,IF(AF6=\"l\",0.559,IF(AF6=\"\",0)))","v":0}]
[null,null,null,null,null,null,null,null,null,null,null,null,null,null,null,null,null,null,null,null,null,null,null,null,null,null,null,null,null,null,null,null,null,null,null,null,null,null,null,null,null,null,null,null,null,null,null,null,null,null,null,null,null,null,50,0,0,0,0,0,0,0,0,0,0,0,0,0,0,0,0,0,0,0,0,0,0,0,0,0,0,0,0,0]
[null,null,null,null,null,null,null,null,null,null,null,null,null,null,null,null,null,null,null,null,null,null,null,null,null,null,null,null,null,null,null,null,null,null,"Sheet Resistivities",null,null,25,"Ohm/Sq.",null,null,null,null,null,null,null,null,null,null,null,null,null,null,null,100,0,0,0,0,0,0,0,0,0,0,0,0,0,0,0,0,0,0,0,0,0,0,0,0,0,0,0,0,0]
[null,null,null,null,null,null,null,null,null,null,null,null,null,null,null,null,null,null,null,null,null,null,null,null,null,null,null,null,null,null,null,null,null,null,null,null,null,null,null,null,null,null,null,null,null,null,null,null,null,null,null,null,null,null,null,0,0,0,0,0,0,0,0,0,0,0,0,0,0,0,0,0,0,0,0,0,0,0,0,0,0,0,0,0]
[null,null,null,null,null,null,null,null,null,null,null,null,null,null,null,null,null,null,null,null,null,null,null,null,null,null,null,null,null,null,null,null,null,null,"Power Rating",null,null,10,"mW",null,null,null,null,null,null,null,null,null,null,null,null,null,null,null,"mm",0,0,0,0,0,0,0,0,0,0,0,0,0,0,0,0,0,0,0,0,0,0,0,0,0,0,0,0,0]
[null,null,null,null,null,null,null,null,null,null,"l","r","l",null,"l","r","l",null,"l","r","l",null,null,null,null,null,null,null,null,null,null,null,null,null,null,null,null,null,null,null,null,null,null,null,null,null,null,null,null,null,null,null,null,null,"Thou",0,0,0,0,0,0,0,0.55900000000000005,1,0.55900000000000005,0,0.55900000000000005,1,0.55900000000000005,0,0.55900000000000005,1,0.55900000000000005,0,0,0,0,0,0,0,0,0,0,0]
[null,null,null,null,null,null,null,null,null,null,"r",null,"r",null,"r",null,"r",null,"r",null,"r",null,null,null,null,null,null,null,null,null,null,null,null,null,"Maximum Tolerance",null,null,4,"%",null,null,null,null,null,null,null,null,null,null,null,null,null,null,null,null,0,0,0,0,0,0,0,1,0,1,0,1,0,1,0,1,0,1,0,0,0,0,0,0,0,0,0,0,0]
[null,null,null,null,null,null,null,null,null,null,"r",null,"r",null,"r",null,"r",null,"r",null,"r",null,null,null,null,null,null,null,null,null,null,null,null,null,null,null,null,null,null,null,null,null,null,null,null,null,null,null,null,null,null,null,null,null,null,0,0,0,0,0,0,0,1,0,1,0,1,0,1,0,1,0,1,0,0,0,0,0,0,0,0,0,0,0]
[null,null,null,null,null,null,null,"r","l",null,"r",null,"r",null,"r",null,"r",null,"r",null,"l","r",null,null,null,null,null,null,null,null,null,null,null,null,"Square Size",null,null,{"$f":"IF(AL6=\"Thou\",BT37,IF(AL6=\"mm\",BT37*25.4/1000))","v":0.33019999999999999},{"$f":"AL6","v":"mm"},null,null,null,null,null,null,null,null,null,null,null,null,null,null,null,null,0,0,0,0,1,0.55900000000000005,0,1,0,1,0,1,0,1,0,1,0,0.55900000000000005,1,0,0,0,0,0,0,0,0,0,0]
[null,null,null,null,null,null,null,null,"r",null,"r",null,"r",null,"r",null,"r",null,"r",null,null,null,null,null,null,null,null,null,null,null,null,null,null,null,null,null,null,null,null,null,null,null,null,null,null,null,null,null,null,null,null,null,null,null,null,0,0,0,0,0,1,0,1,0,1,0,1,0,1,0,1,0,0,0,0,0,0,0,0,0,0,0,0,0]
[null,null,null,null,null,null,null,null,"r",null,"r",null,"r",null,"r",null,"r",null,"r",null,null,null,null,null,null,null,null,null,null,null,null,null,null,null,"Resistance Value",null,null,{"$f":"BY26","v":1120.6499999999996},"Ohm",null,null,null,null,null,null,null,null,null,null,null,null,null,null,null,null,0,0,0,0,0,1,0,1,0,1,0,1,0,1,0,1,0,0,0,0,0,0,0,0,0,0,0,0,0]
[null,null,null,null,null,null,null,null,"l","r","l",null,"l","r","l",null,"l","r","l",null,null,null,null,null,null,null,null,null,null,null,null,null,null,null,null,null,null,null,null,null,null,null,null,null,null,null,null,null,null,null,null,null,null,null,null,0,0,0,0,0,0.55900000000000005,1,0.55900000000000005,0,0.55900000000000005,1,0.55900000000000005,0,0.55900000000000005,1,0.55900000000000005,0,0,0,0,0,0,0,0,0,0,0,0,0]
[null,null,null,null,null,null,null,null,null,null,null,null,null,null,null,null,null,null,null,null,null,null,null,null,null,null,null,null,null,null,null,null,null,null,null,null,null,null,null,null,null,null,null,null,null,null,null,null,null,null,null,null,null,null,null,0,0,0,0,0,0,0,0,0,0,0,0,0,0,0,0,0,0,0,0,0,0,0,0,0,0,0,0,0]
[null,null,null,null,null,null,null,null,null,null,null,null,null,null,null,null,null,null,null,null,null,null,null,null,null,null,null,null,null,null,null,null,null,null,null,null,null,null,null,null,null,null,null,null,null,null,null,null,null,null,null,null,null,null,null,0,0,0,0,0,0,0,0,0,0,0,0,0,0,0,0,0,0,0,0,0,0,0,0,0,0,0,0,0]
[null,null,null,null,null,null,null,null,null,null,null,null,null,null,null,null,null,null,null,null,null,null,null,null,null,null,null,null,null,null,null,null,null,null,null,null,null,null,null,null,null,null,null,null,null,null,null,null,null,null,null,null,null,null,null,0,0,0,0,0,0,0,0,0,0,0,0,0,0,0,0,0,0,0,0,0,0,0,0,0,0,0,0,0]
[null,null,null,null,null,null,null,null,null,null,null,null,null,null,null,null,null,null,null,null,null,null,null,null,null,null,null,null,null,null,null,null,null,null,null,null,null,null,null,null,null,null,null,null,null,null,null,null,null,null,null,null,null,null,null,0,0,0,0,0,0,0,0,0,0,0,0,0,0,0,0,0,0,0,0,0,0,0,0,0,0,0,0,0]
[null,null,null,null,null,null,null,null,null,null,null,null,null,null,null,null,null,null,null,null,null,null,null,null,null,null,null,null,null,null,null,null,null,null,"Back To Start",null,null,null,null,null,null,null,null,null,null,null,null,null,null,null,null,null,null,null,null,0,0,0,0,0,0,0,0,0,0,0,0,0,0,0,0,0,0,0,0,0,0,0,0,0,0,0,0,0]
[null,null,null,null,null,null,null,null,null,null,null,null,null,null,null,null,null,null,null,null,null,null,null,null,null,null,null,null,null,null,null,null,null,null,null,null,null,null,null,null,null,null,null,null,null,null,null,null,null,null,null,null,null,null,null,0,0,0,0,0,0,0,0,0,0,0,0,0,0,0,0,0,0,0,0,0,0,0,0,0,0,0,0,0]
[]
[null,null,null,"To Create your custom Resistor use the following Keys",null,null,null,null,null,null,null,null,null,null,null,null,null,null,null,null,null,null,null,null,null,null,null,null,null,null,null,null,null,null,null,null,null,null,null,null,null,null,null,null,null,null,null,null,null,null,null,null,null,null,null,null,null,null,null,null,null,null,null,null,null,null,null,null,null,null,null,null,null,null,null,null,{"$f":"SUM(BD6:CF23)","v":44.825999999999986}]
[null,null,null,null,null,null,null,null,null,null,null,null,null,null,null,null,null,null,null,null,null,null,null,null,null,null,null,null,null,null,null,null,null,null,null,null,null,null,null,null,null,null,null,null,null,null,null,null,null,null,null,null,null,null,null,null,null,null,null,null,null,null,null,null,null,null,null,null,null,null,null,null,null,null,null,null,{"$f":"AL8*BY25","v":1120.6499999999996}]
[null,null,null,"L = ","l",null,null," Using the Letter L in the box above will create a Circle, This must be used for any corners",null,null,null,null,null,null,null,null,null,null,null,null,null,null,null,null,null,null,null,null,null,null,null,null,null,null,null,null,null,null,null,null,null,null,null,null,null,null,null,null,null,null,null,null,null,null,null,null,null,null,null,null,null,null,null,null,null,null,null,null,null,null,null,null,null,null,null,null,{"$f":"ROUNDDOWN(BY25,0)","v":44}]
[null,null,null,"R=","r",null,null," Using the Letter R in the box above will create a Square, This must be used for any Normal resistor Squares"]
[]
[]
[]
[]
[null,null,null,null,null,null,null,null,null,null,null,null,null,null,null,null,null,null,null,null,null,null,null,null,null,null,null,null,null,null,null,null,null,null,null,null,null,null,null,null,null,null,null,null,null,null,null,null,null,null,null,null,null,null,null,null,null,null,null,null,null,null,null,null,null,null,"Ps","AP","N","WT","LT","WP","LP","TT"]
[null,null,null,null,null,null,null,null,null,null,null,null,null,null,null,null,null,null,null,null,null,null,null,null,null,null,null,null,null,null,null,null,null,null,null,null,null,null,null,null,null,null,null,null,null,null,null,null,null,null,null,null,null,null,null,null,null,null,null,null,null,null,null,null,null,null,"Power","Area","Number of","Minimum","Minimum","Design","Design","Total"]
[null,null,null,null,null,null,null,null,null,null,null,null,null,null,null,null,null,null,null,null,null,null,null,null,null,null,null,null,null,null,null,null,null,null,null,null,null,null,null,null,null,null,null,null,null,null,null,null,null,null,null,null,null,null,null,null,null,null,null,null,null,null,null,null,null,null,"Rating",null,"Square","Width","Length","Width","Length","Tolerance"]
[null,null,null,null,null,null,null,null,null,null,null,null,null,null,null,null,null,null,null,null,null,null,null,null,null,null,null,null,null,null,null,null,null,null,null,null,null,null,null,null,null,null,null,null,null,null,null,null,null,null,null,null,null,null,null,null,null,null,null,null,null,null,null,null,null,null,"mW/mil2","mil2",null,"mil","mil","mil","mil","%"]
[null,null,null,null,null,null,null,null,null,null,null,null,null,null,null,null,null,null,null,null,null,null,null,null,null,null,null,null,null,null,null,null,null,null,null,null,null,null,null,null,null,null,null,null,null,null,null,null,null,null,null,null,null,null,null,null,null,null,null,null,null,null,null,null,null,null,{"$f":"IF(AL8=25,61.2*POWER(BR37*BR37*BQ37,-0.87),IF(AL8=50,54.5*POWER(BR37*BR37*BQ37,-0.87),IF(AL8=100,45.9*POWER(BR37*BR37*BQ37,-0.87))))","v":1.3126888303257006E-3},{"$f":"AL10/BO37","v":7617.9516188302059},{"$f":"AL16/AL8","v":44.825999999999986},{"$f":"ROUND(((0.7/(AL12-5))* ((BQ37+1)/BQ37))*100,0)","v":-72},{"$f":"BR37*BQ37","v":-3227.4719999999988},{"$f":"ROUND(SQRT(BP37/BQ37),0)","v":13},{"$f":"(BT37*BQ37)","v":582.73799999999983},{"$f":"(((0.7/(BT37))* ((BQ37+0.7)/BQ37))*100)+5","v":10.468701200196314}]
[]
[null,null,null,null,null,null,null,null,null,null,null,null,null,null,null,null,null,null,null,null,null,null,null,null,null,null,null,null,null,null,null,null,null,null,null,null,null,null,null,null,null,null,null,null,null,null,null,null,null,null,null,null,null,null,null,null,null,null,null,null,null,null,null,null,"W1","   L2"]
[null,null,null,null,null,null,null,null,null,null,null,null,null,null,null,null,null,null,null,null,null,null,null,null,null,null,null,null,null,null,null,null,null,null,null,null,null,null,null,null,null,null,null,null,null,null,null,null,null,null,null,null,null,null,null,null,null,null,null,null,null,null,null,null,"(Mil)","   (Mil)"]
[null,null,null,null,null,null,null,null,null,null,null,null,null,null,null,null,null,null,null,null,null,null,null,null,null,null,null,null,null,null,null,null,null,null,null,null,null,null,null,null,null,null,null,null,null,null,null,null,null,null,null,null,null,null,null,null,null,null,null,null,null,null,null,null,{"$f":"IF(BR37>=BT37,BR37,BT37)","v":13},{"$f":"IF(BR37>=BT37,BM41*BQ37,BM41*BQ37)","v":582.73799999999983},{"$f":"IF(DU33>=DW33,\"t*\",\"P*\")","v":"t*"}]
[]
[null,null,null,null,null,null,null,null,null,null,null,null,null,null,null,null,null,null,null,null,null,null,null,null,null,null,null,null,null,null,null,null,null,null,null,null,null,null,null,null,null,null,null,null,null,null,null,null,null,null,null,null,null,null,null,null,null,null,null,null,null,null,null,null,"NOTE:  WT & LT are derive from the tolerance, and WP & LP are derive form the power dissipation of the "]
[null,null,null,null,null,null,null,null,null,null,null,null,null,null,null,null,null,null,null,null,null,null,null,null,null,null,null,null,null,null,null,null,null,null,null,null,null,null,null,null,null,null,null,null,null,null,null,null,null,null,null,null,null,null,null,null,null,null,null,null,null,null,null,null,null,25,"mm"]
[null,null,null,null,null,null,null,null,null,null,null,null,null,null,null,null,null,null,null,null,null,null,null,null,null,null,null,null,null,null,null,null,null,null,null,null,null,null,null,null,null,null,null,null,null,null,null,null,null,null,null,null,null,null,null,null,null,null,null,null,null,null,null,null,null,50,"Thou"]
[null,null,null,null,null,null,null,null,null,null,null,null,null,null,null,null,null,null,null,null,null,null,null,null,null,null,null,null,null,null,null,null,null,null,null,null,null,null,null,null,null,null,null,null,null,null,null,null,null,null,null,null,null,null,null,null,null,null,null,null,null,null,null,null,null,100]
[]
[null,null,null,null,null,null,null,null,null,null,null,null,null,null,null,null,null,null,null,null,null,null,null,null,null,null,null,null,null,null,null,null,null,null,null,null,null,null,null,null,null,null,null,null,null,null,null,null,null,null,null,null,null,null,null,null,null,null,null,null,null,null,null,null,null,{"$f":"IF(BQ37<1,\"Partial Square\",IF(BQ37<=10,\"Bar Type\",IF(BQ37>10,\"Serpentine\")))","v":"Serpentine"}]

{"sheet":"convert","index":29,"n_rows":37,"n_cols":11,"rows_kept":37,"cut":false,"hidden":false,"merged":[[21,1,21,2],[5,1,5,5],[9,8,9,10],[12,8,13,8],[10,8,11,8],[14,8,15,8],[10,9,11,9],[10,10,11,10],[12,9,13,9],[12,10,13,10],[35,10,35,11],[36,10,36,11],[16,10,17,10],[18,8,19,8],[18,9,19,9],[18,10,19,10],[16,8,17,8],[16,9,17,9]]}
["II"]
[]
[]
[]
[]
[null,"PCB NUMERIC CONVERTER"]
[]
[null,"General"]
[]
[null,"Inches ",0.188,"=","Milimetres",{"$f":"C10*25.4","v":4.7751999999999999},null,null," PCB SIZE REQUIRED"]
[null,null,null,null,null,null,null,null,"PCB",1.6,"mm"]
[null,"Milimetres",0.05,"=","Inches",{"$f":"C12/25.4","v":1.9685039370078744E-3}]
[null,null,null,null,null,null,null,null,"TOLERENCE",5,"%"]
[null,"Thou",4,"=","Milimetres",{"$f":"C14*25.4/1000","v":0.1016}]
[null,null,null,null,null,null,null,null,"    TOTAL"]
[null,"Milimetres",6.6,"=","Thou",{"$f":"C16/25.4*1000","v":259.84251968503935}]
[null,null,null,null,null,null,null,null,"MAX.",{"$f":"J11/100*J13+J11","v":1.6800000000000002},"mm"]
[null,"Thou",5,"=","Microns",{"$f":"C18*25.4","v":127}]
[null,null,null,null,null,null,null,null,"MIN.",{"$f":"J11-(J11/100*J13)","v":1.52},"mm"]
[null,"Microns",18,"=","Thou",{"$f":"C20/25.4","v":0.70866141732283472}]
[]
[null,"Copper Thickness"]
[]
[null,"Thou",0.72,"=","Oz",{"$f":"C24/1.44","v":0.5}]
[]
[null,"Oz",0.5,"=","Thou",{"$f":"1.44*C26","v":0.72}]
[]
[]
[]
[]
[]
[]
[]
[]
[]
[null,null,null,null,null,null,null,null,null,null,"Designed"]
[null,null,null,null,null,null,null,null,null,null,"By"]

{"sheet":"Matched Length","index":30,"n_rows":32,"n_cols":55,"rows_kept":32,"cut":false,"hidden":false,"merged":[[19,3,19,8],[19,16,19,20],[10,1,10,7],[11,1,11,7],[21,38,21,40],[22,38,22,40],[19,38,19,43],[10,10,10,15],[11,10,11,12],[10,31,10,36],[21,41,21,43],[31,1,32,43],[24,1,24,9],[25,1,25,9],[26,1,26,9],[26,10,26,20],[21,1,21,9],[23,41,23,43],[24,41,24,43],[23,38,23,40],[24,38,24,40],[20,1,20,9],[22,1,22,9],[23,1,23,9],[20,10,20,20],[21,10,21,20],[22,10,22,20],[20,38,20,43],[23,31,23,36],[22,41,22,43],[30,41,30,43],[25,38,25,40],[26,38,26,40],[26,41,26,43],[27,41,27,43],[28,41,28,43],[25,41,25,43],[28,31,28,36],[29,31,29,36],[29,22,29,27],[27,31,27,36],[29,41,29,43],[27,22,27,27],[28,22,28,27],[6,21,6,24],[10,45,10,50],[11,45,11,47],[11,48,11,50],[30,22,30,27],[30,31,30,36],[27,38,27,40],[28,38,28,40],[29,38,29,40],[30,38,30,40],[11,13,11,15],[24,31,24,36],[25,31,25,36],[21,22,21,27],[22,22,22,27],[11,31,11,33],[19,31,19,36],[19,28,19,30],[20,22,20,27],[20,31,20,36],[21,31,21,36],[11,34,11,36],[4,4,4,11],[5,6,5,10],[5,19,5,24],[1,12,4,45],[19,22,19,27],[6,18,6,20],[23,10,23,20],[24,10,24,20],[27,1,27,9],[26,31,26,36],[22,31,22,36],[23,22,23,27],[24,22,24,27],[26,22,26,27],[25,22,25,27],[28,1,28,9],[25,10,25,20],[29,1,29,9],[30,1,30,9],[27,10,27,20],[28,10,28,20],[29,10,29,20],[30,10,30,20]]}
[1]
[null,null,null,null,null,null,null,null,null,null,null,null,"Matched Length Calculator"]
[]
[]
[null,null,null,null,"Select Units"]
[null,null,null,null,null,null,"mm",null,null,null,null,null,null,null,null,null,null,null,null,"Component",null,null,null,null,null,null,null,null,null,null,null,null,null,null,null,null,null,null,null,null,null,null,null,null,null,null,null,null,null,null,null,null,null,null,"mm"]
[null,null,null,null,null,null,null,null,null,null,null,null,null,null,null,null,null,null,1.1000000000000001,null,null,{"$f":"G6","v":"mm"},null,null,null,null,null,null,null,null,null,null,null,null,null,null,null,null,null,null,null,null,null,null,null,null,null,null,null,null,null,null,null,null,"Thou"]
[null,null,null,null,null,null,null,null,null,null,null,null,null,null,null,null,null,null,null,null,null,null,null,null,null,null,null,null,null,null,null,null,null,null,null,null,null,null,null,null,null,null,null,null,null,null,null,null,null,null,null,null,null,null,"Microns"]
[]
[]
[null,"Type in values for",null,null,null,null,null,null,null,null,"A",null,null,null,null,null,null,null,null,null,null,null,null,null,null,null,null,null,null,null,null,"B",null,null,null,null,null,null,null,null,null,null,null,null,null,"TOTAL"]
[null,"Longest Signal",null,null,null,null,null,null,null,null,6.7,null,null,{"$f":"G6","v":"mm"},null,null,null,null,null,null,null,null,null,null,null,null,null,null,null,null,null,128,null,null,{"$f":"G6","v":"mm"},null,null,null,null,null,null,null,null,null,null,{"$f":"K12+S7+AF12","v":135.80000000000001},null,null,{"$f":"G6","v":"mm"}]
[]
[]
[]
[]
[]
[]
[]
[null,null,null,"Name",null,null,null,null,null,null,null,null,null,null,null,null,"Name",null,null,null,null,null,"Input",null,null,null,null,null,{"$f":"S7","v":1.1000000000000001},null,null,"Result"]
[null,"NET A",null,null,null,null,null,null,null,null,"NET B",null,null,null,null,null,null,null,null,null,null,null,"A",null,null,null,null,null,null,null,null,"B",null,null,null,null,null,null,"TOTAL"]
[null,"CLK5",null,null,null,null,null,null,null,null,"CLK5",null,null,null,null,null,null,null,null,null,null,null,{"$f":"K12","v":6.7},null,null,null,null,null,null,null,null,{"$f":"AF12","v":128},null,null,null,null,null,null,{"$f":"AT12","v":135.80000000000001},null,null,{"$f":"G6","v":"mm"}]
[null,"CLK0",null,null,null,null,null,null,null,null,"CLK0",null,null,null,null,null,null,null,null,null,null,null,5.12,null,null,null,null,null,null,null,null,{"$f":"IF(W23=\"\",\"\",AM23-S7-W23)","v":129.58000000000001},null,null,null,null,null,null,{"$f":"IF(W23=\"\",\"\",AT12)","v":135.80000000000001},null,null,{"$f":"G6","v":"mm"}]
[null,"CLK1",null,null,null,null,null,null,null,null,"CLK1",null,null,null,null,null,null,null,null,null,null,null,8.94,null,null,null,null,null,null,null,null,{"$f":"IF(W24=\"\",\"\",AM24-S7-W24)","v":125.76000000000002},null,null,null,null,null,null,{"$f":"IF(W24=\"\",\"\",AT12)","v":135.80000000000001},null,null,{"$f":"G6","v":"mm"}]
[null,"CLK2",null,null,null,null,null,null,null,null,"CLK2",null,null,null,null,null,null,null,null,null,null,null,5.73,null,null,null,null,null,null,null,null,{"$f":"IF(W25=\"\",\"\",AM25-S7-W25)","v":128.97000000000003},null,null,null,null,null,null,{"$f":"IF(W25=\"\",\"\",AT12)","v":135.80000000000001},null,null,{"$f":"G6","v":"mm"}]
[null,"CLK3",null,null,null,null,null,null,null,null,"CLK3",null,null,null,null,null,null,null,null,null,null,null,4.13,null,null,null,null,null,null,null,null,{"$f":"IF(W26=\"\",\"\",AM26-S7-W26)","v":130.57000000000002},null,null,null,null,null,null,{"$f":"IF(W26=\"\",\"\",AT12)","v":135.80000000000001},null,null,{"$f":"G6","v":"mm"}]
[null,"CLK4",null,null,null,null,null,null,null,null,"CLK4",null,null,null,null,null,null,null,null,null,null,null,6.1,null,null,null,null,null,null,null,null,{"$f":"IF(W27=\"\",\"\",AM27-S7-W27)","v":128.60000000000002},null,null,null,null,null,null,{"$f":"IF(W27=\"\",\"\",AT12)","v":135.80000000000001},null,null,{"$f":"G6","v":"mm"}]
[null,"CLK6",null,null,null,null,null,null,null,null,"CLK6",null,null,null,null,null,null,null,null,null,null,null,5.95,null,null,null,null,null,null,null,null,{"$f":"IF(W28=\"\",\"\",AM28-S7-W28)","v":128.75000000000003},null,null,null,null,null,null,{"$f":"IF(W28=\"\",\"\",AT12)","v":135.80000000000001},null,null,{"$f":"G6","v":"mm"}]
[null,"CLK7",null,null,null,null,null,null,null,null,"CLK7",null,null,null,null,null,null,null,null,null,null,null,7.25,null,null,null,null,null,null,null,null,{"$f":"IF(W29=\"\",\"\",AM29-S7-W29)","v":127.45000000000002},null,null,null,null,null,null,{"$f":"IF(W29=\"\",\"\",AT12)","v":135.80000000000001},null,null,{"$f":"G6","v":"mm"}]
[null,null,null,null,null,null,null,null,null,null,null,null,null,null,null,null,null,null,null,null,null,null,null,null,null,null,null,null,null,null,null,{"$f":"IF(W30=\"\",\"\",AM30-S7-W30)","v":""},null,null,null,null,null,null,{"$f":"IF(W30=\"\",\"\",AT12)","v":""},null,null,{"$f":"G6","v":"mm"}]
[null,null,null,null,null,null,null,null,null,null,null,null,null,null,null,null,null,null,null,null,null,null,null,null,null,null,null,null,null,null,null,{"$f":"IF(W31=\"\",\"\",AM31-S7-W31)","v":""},null,null,null,null,null,null,{"$f":"IF(W31=\"\",\"\",AT12)","v":""},null,null,{"$f":"G6","v":"mm"}]
[null,"Type in the vaue for the longest matched length signal in the diagram the input A for each of the following nets."]